Workbook

Sheet LOS Range
C3: Friis-Equation and 2-Ray Ground Reflection Model
C5: Antenna locations (height over ground) | D5: Tx: | E5: 1 | F5: Rx: | G5: 1 | I5: m
C6: Maximum LOS based on antenna heights: | H6: =(SQRT( 2*H_1*6365000+ POWER(H_1,2)) + SQRT( 2*H_2*6365000+POWER(H_2,2 ))) / 1000 -> 7.13582539 | I6: km
C8: Frequency (region)¹: | D8: 868 MHz | E8: =VLOOKUP(D8,Calc!BR19:BT28,3,0) -> High-band Sub-1GHz, Europe, Africa | H8: =VLOOKUP(D8,Calc!BR19:BS28,2,0) -> 868 | I8: MHz
C9: Antenna position: | D9: Vertical | I9: -
C11: Tx conducted output power: | D11: 14 | I11: dBm
C12: Mean Effecitive Gain (MEG) of Tx antenna: | D12: DN024 - 863-928 MHz (CC_Antenna_DK2_#9) | H12: =VLOOKUP(D12,Calc!BJ19:BK33,2,FALSE) -> -0.95 | I12: dBi
C13: Mean Effecitive Gain (MEG) of Rx antenna: | D13: DN024 - 863-928 MHz (CC_Antenna_DK2_#9) | H13: =VLOOKUP(D13,Calc!BJ19:BK33,2,FALSE) -> -0.95 | I13: dBi
C15: Select ground surface: | D15: Ground | H15: =VLOOKUP(D15,Calc!BG19:BH21,2,FALSE) -> 18
C17: Interference power level (at antenna port): | D17: No interference | H17: =VLOOKUP(D17,Calc!BO19:BP32,2,0) -> - | I17: dBm
C18: Environmental noise floor: | D18: -150 | H18: =VLOOKUP(D18,Calc!BZ19:CA26,2,0) -> -150 | I18: dBm
C20: Select chip and datarate (sensitivity level): | D20: CC13x0 - 0.625 kbps (LRM) | H20: =VLOOKUP(D20,Calc!AJ19:AK88,2,FALSE) -> -124 | I20: dBm
C21: Blocking Level (fc +/- 10MHz): | H21: =VLOOKUP(chip,Calc!AJ19:AL88,3,0) -> 90 | I21: dB
C22: Practical sensitivity level: | H22: =IF(H18+6>index+H26,H18+6,index+H26) -> -108 | I22: dBm
C23: Practical sensitivity level with Interference: | H23: =IF(selDist=Calc!$BO$19,"-",IF(dist-VLOOKUP(chip,Calc!AJ19:AL88,3,0)+H26>H22,dist-$H$21+H26,$H$22)) -> - | I23: dBm
C25: Attenuation between Rx and Tx:
C26: Link margin | D26: No antenna diversity | H26: =Calc!BE23 -> 16 | I26: dB
C27: Absorbtion material 1: | D27: None (LOS)
C28: Absorbtion material 2: | D28: None (LOS)
C29: Absorbtion material 3: | D29: None (LOS) | J29: For more info concerning our wireless devices, visit the E2E community
C31: Link budget: | H31: =-(index-Pt)+Gt+Gr -> 136.1 | I31: dB | L31: Achieving Optimum Range | O31: Range Debug Check List
D32: With Interference | F32: Without Interference | G32: Friis
C33: Realistic range expectation: | D33: =IF(selDist=Calc!$BO$19,F33,(MIN(VLOOKUP(Calc!AQ10028,Calc!AO10028:AP20028,2,FALSE),G33,H6*1000))) -> 2402.17618 | F33: =MIN(VLOOKUP(Calc!AQ19,Calc!AO19:AP10019,2,FALSE),G33,H6*1000) -> 2402.17618 | G33: =VLOOKUP(Calc!AV19,Calc!AT19:AU10019,2,FALSE) -> 27821.03697 | J33: Rev 1.16 | L33: CC-Antenna-DK2 | O33: Antenna Selection Guide
C34: 1. To be able to enter custom frequency, please enable marcos.

Sheet Calc (hidden)
B2: Constants | AD2: =IF(index=1,"CC1100, 315MHz, 1.2kbaud sensitivity = -111dBm","") -> 
B3: Speed of light in vaccuum | E3: 299972458 | F3: [m/s] | AD3: =IF(index=2,"CC1100, 915MHz, 500kbaud sensitivity = -87dBm","") -> 
B4: Scale of graph | E4: =1.5*(0.299792458/(4*PI()*freq/1000))* SQRT((10^((Pt-30)/10)*Gr_m*Gt_m)/(10^(('LOS Range'!H22-30)/10))) -> 41704.44757 | F4: m | AD4: =IF(index=3,"CC2520, 2.4GHz, sensitivity = -98dBm","") -> 
E5: =IF(1.5*(0.299792458/(4*PI()*freq/1000))*SQRT((10^((Pt-30)/10)*Gr_m*Gt_m)/(10^((BR16-30)/10)))<D,1.5*(0.299792458/(4*PI()*freq/1000))*SQRT((10^((Pt-30)/10)*Gr_m*Gt_m)/(10^((BR16-30)/10))),D) ->  | F5: m
B6: Variables | AD6: =IF(index=4,"CC2430, 2.4GHz, sensitivity = -92dBm","") -> 
B7: Wave lenght (Lambda) | E7: =cv/(freq*1000000) -> 0.3455903894 | F7: [m] | AD7: =IF(index=5,"CC2500, 2.4GHz, 2.4kbaud sensitivity = -104dBm","") -> 
B8: Power transmitted (Pt_w) | E8: =10^(Pt/10)/1000 -> 0.02511886432 | F8: [Watt] | AD8: =IF(index=6,"CC1120@1.2kbps = -123dBm","") -> 
AJ9: LRM
B10: Transmitting antenna gain (Gt_m) | E10: =10^(Gt/10) -> 0.8035261222 | F10: [ggr]
B11: Receiving antenna gain (Gr_m) | E11: =10^(Gr/10) -> 0.8035261222 | F11: [ggr] | AJ11: Bluetooth | AL11: Approximated | AS11: =VLOOKUP(Calc!AQ19,Calc!AO19:AP10019,2,FALSE) -> 2402.17618
B13: H_2 Compenstaion for initial power error (H_3) | F13: =H_2+0.0275 -> 1.0275 | G13: OK for 868 MHz
I14: Reflection coefficient | L14: Cos(Phase difference) | O14: Energy | S14: Total Energy | V14: Total Energy
E15: Travelled distance | I15: Polarisation | O15: Direct | P15: Reflected wave | AO15: Difference between | AT15: Difference between | BR15: =index+'LOS Range'!H26 -> -108
S16: Direct+Reflected | W16: Direct+Reflected | Z16: Plot vector | AC16: =index -> -124 | AO16: ground model | AT16: Friis and practical | AU16: plot step | BR16: =IF(selDist=BO19,ERROR.TYPE(7),'LOS Range'!H23) -> 
B17: index | C17: plot step | D17: phi | E17: direct wave | F17: reflected wave | G17: difference | I17: Vertical | J17: Horisontal | L17: Vertical | M17: Horisontal | O17: wave | P17: Vertical | Q17: Horisontal | S17: Vertical | T17: Horisontal | V17: Friis | W17: Vertical | X17: Horisontal | Z17: =IF(pol="Horizontal","Ground model Horisontal polarisation","Ground model Vertical polarisation") -> Ground model Vertical polarisation | AD17: Actual Sensitivity Level | AE17: Practical Sensitivity Level | AO17: curve and practical | AP17: plot step
B18: [0-10000] | C18: [m] | E18: [m] | F18: [m] | G18: [m] | O18: [watt] | P18: [watt] | Q18: [watt] | S18: [watt] | T18: [watt] | V18: [dBm] | W18: [dBm] | X18: [dBm] | Z18: [dBm] | AD18: [dBm] | AE18: [dBm] | AJ18: Devices | AK18: Sensitvity | AL18: +/- 10 MHz | AM18: +/- 6 MHz | AN18: +/- 2MHz | AO18: sensitivity level | AP18: [m] | AQ18: Smallest diff | AT18: sensitivity level | AU18: [m] | AV18: Smallest diff | AY18: Material | AZ18: dB | BB18: Material | BC18: dB | BE18: Summary | BG18: Dielectric constant | BJ18: Transmitting antenna | BK18: Mean Effective Gain | BL18: peak gain (dBi) | BM18: Directivity (dBi) | BO18: Interference | BR18: Frequencies | BX18: Polarity | BZ18: Environmental noise
B19: 0 | C19: 1e-05 | D19: =ATAN((H_1+H_3)/C19) -> 1.570791395 | E19: =SQRT(ABS(H_1-H_3)^2+C19^2) -> 0.02750000182 | F19: =SQRT(C19^2+(H_1+H_3)^2) -> 2.0275 | G19: =F19-E19 -> 1.999999998 | I19: =(er*SIN(D19)-SQRT(er-COS(D19)^2))/(er*SIN(D19)+SQRT(er-COS(D19)^2)) -> 0.6185128603 | J19: =(SIN(D19)-SQRT(er-COS(D19)^2))/(SIN(D19)+SQRT(er-COS(D19)^2)) -> -0.6185128603 | L19: =COS(G19*2*PI()/lambda)*SIGN(I19) -> 0.2315996365 | M19: =COS(G19*2*PI()/lambda)*SIGN(J19) -> -0.2315996365 | O19: =Pt_w*Gt_m*Gr_m*lambda^2/((4*PI()*E19)^2) -> 0.01621952532 | P19: =Pt_w*Gt_m*Gr_m*lambda^2/((4*PI()*F19)^2)*ABS(I19) -> 1.845570303e-06 | Q19: =Pt_w*Gt_m*Gr_m*lambda^2/((4*PI()*F19)^2)*ABS(J19) -> 1.845570303e-06 | S19: =O19+L19*P19 -> 0.01621995275 | T19: =O19+M19*Q19 -> 0.01621909789 | V19: =10*LOG10(O19*1000) -> 12.1003814 | W19: =10*LOG10(S19*1000) -> 12.10049585 | X19: 12.10026695 | Z19: =IF(pol="Horizontal",X19,W19) -> 12.10049585 | AD19: =(AC16) -> -124 | AE19: =IF('LOS Range'!$H$18>index+$H$25,'LOS Range'!$H$22,AD19+'LOS Range'!$H$26) -> -108 | AJ19: Custom | AK19: =AK17 -> 0 | AL19: =AL17 -> 0 | AO19: =ABS(AE19-Z19) -> 120.1004958 | AP19: 1e-05 | AQ19: =SMALL($AO19:$AO10019,1) -> 0.004157873161 | AT19: =ABS(AE19-V19) -> 120.1003814 | AU19: 1e-05 | AV19: =SMALL($AT19:$AT10019,1) -> 0.0004304175161 | AY19: No antenna diversity | AZ19: 16 | BB19: None (LOS) | BC19: 0 | BE19: =VLOOKUP('LOS Range'!D26,AY19:AZ21,2,FALSE) -> 16 | BG19: Ground | BH19: 18 | BJ19: 100 % efficient antenna | BK19: =BL19-BM19 -> 0 | BL19: 2.1 | BM19: 2.1 | BO19: No interference | BP19: - | BR19: 169 MHz | BS19: 169 | BT19: Italy, Spain, France | BX19: Horizontal
B20: 1 | C20: =D/10000*B20 -> 4.170444757 | D20: =ATAN((H_1+H_3)/C20) -> 0.4525137693 | E20: =SQRT(ABS(H_1-H_3)^2+C20^2) -> 4.170535424 | F20: =SQRT(C20^2+(H_1+H_3)^2) -> 4.637172169 | G20: =F20-E20 -> 0.4666367448 | I20: =(er*SIN(D20)-SQRT(er-COS(D20)^2))/(er*SIN(D20)+SQRT(er-COS(D20)^2)) -> 0.3099013944 | J20: =(SIN(D20)-SQRT(er-COS(D20)^2))/(SIN(D20)+SQRT(er-COS(D20)^2)) -> -0.8092146412 | L20: =COS(G20*2*PI()/lambda)*SIGN(I20) -> -0.5891041256 | M20: =COS(G20*2*PI()/lambda)*SIGN(J20) -> 0.5891041256 | O20: =Pt_w*Gt_m*Gr_m*lambda^2/((4*PI()*E20)^2) -> 7.052124265e-07 | P20: =Pt_w*Gt_m*Gr_m*lambda^2/((4*PI()*F20)^2)*ABS(I20) -> 1.767749301e-07 | Q20: =Pt_w*Gt_m*Gr_m*lambda^2/((4*PI()*F20)^2)*ABS(J20) -> 4.61594766e-07 | S20: =O20+L20*P20 -> 6.010735859e-07 | T20: =O20+M20*Q20 -> 9.771398075e-07 | V20: =10*LOG10(O20*1000) -> -31.51680044 | W20: -32.21072357 | X20: -30.10043294 | Z20: -32.21072357 | AD20: =$AD$19 -> -124 | AE20: =IF('LOS Range'!$H$18>index+$H$25,'LOS Range'!$H$22,AD20+'LOS Range'!$H$26) -> -108 | AJ20: Long Range - CC1120 CC1190 - 0.3 kbps (LRM) | AK20: -130 | AL20: 91 | AO20: 75.78927643 | AP20: =D/10000*B20 -> 4.170444757 | AT20: =ABS(AE20-V20) -> 76.48319956 | AU20: =D/10000*B20 -> 4.170444757 | AY20: With antenna diversity | AZ20: 10 | BB20: 7" brick - 500 MHz (3,5 dB) | BC20: 3.5 | BE20: =VLOOKUP('LOS Range'!D27,BB19:BC37,2,FALSE) -> 0 | BG20: Water | BH20: 88 | BJ20: DN007 - 2.4 GHz (CC_Antenna_DK2_#11) | BK20: =BL20-BM20 -> -1.15 | BL20: 4.76 | BM20: 5.91 | BO20: -10 | BP20: -10 | BR20: 315 MHz | BS20: 315 | BT20: Low-band Sub-1GHz, US | BX20: Vertical | BZ20: -90 | CA20: -90
B21: =B20+1 -> 2 | C21: 8.340889514 | D21: =ATAN((H_1+H_3)/C21) -> 0.2384548051 | E21: =SQRT(ABS(H_1-H_3)^2+C21^2) -> 8.340934848 | F21: =SQRT(C21^2+(H_1+H_3)^2) -> 8.583775052 | G21: =F21-E21 -> 0.2428402037 | I21: =(er*SIN(D21)-SQRT(er-COS(D21)^2))/(er*SIN(D21)+SQRT(er-COS(D21)^2)) -> 0.01452726036 | J21: =(SIN(D21)-SQRT(er-COS(D21)^2))/(SIN(D21)+SQRT(er-COS(D21)^2)) -> -0.8918012817 | L21: =COS(G21*2*PI()/lambda)*SIGN(I21) -> -0.2929461426 | M21: =COS(G21*2*PI()/lambda)*SIGN(J21) -> 0.2929461426 | O21: =Pt_w*Gt_m*Gr_m*lambda^2/((4*PI()*E21)^2) -> 1.763088559e-07 | P21: =Pt_w*Gt_m*Gr_m*lambda^2/((4*PI()*F21)^2)*ABS(I21) -> 2.418414007e-09 | Q21: =Pt_w*Gt_m*Gr_m*lambda^2/((4*PI()*F21)^2)*ABS(J21) -> 1.484619025e-07 | S21: =O21+L21*P21 -> 1.756003909e-07 | T21: =O21+M21*Q21 -> 2.198001976e-07 | V21: =10*LOG10(O21*1000) -> -37.53725873 | W21: -37.55474522 | X21: -36.57971921 | Z21: -37.55474522 | AD21: -124 | AE21: =IF('LOS Range'!$H$18>index+$H$25,'LOS Range'!$H$22,AD21+'LOS Range'!$H$26) -> -108 | AJ21: Long Range - CC13xx CC1190 - 0.625 kbps (LRM) | AK21: -127 | AL21: 90 | AO21: 70.44525478 | AP21: 8.340889514 | AT21: 70.46274127 | AU21: 8.340889514 | AY21: None | AZ21: 0 | BB21: 7" brick - 1 GHz (5,5 dB) | BC21: 5.5 | BE21: =VLOOKUP('LOS Range'!D28,BB19:BC37,2,FALSE) -> 0 | BG21: Sand | BH21: 2.5 | BJ21: AN043 - 2.4 GHz (CC_Antenna_DK2_#2) | BK21: -1.47 | BL21: 3.14 | BM21: 4.61 | BO21: -20 | BP21: -20 | BR21: 433 MHz | BS21: 433 | BT21: Low-band Sub-1GHz, “Global-ish” | BZ21: -100 | CA21: -100
B22: =B21+1 -> 3 | C22: 12.51133427 | D22: =ATAN((H_1+H_3)/C22) -> 0.1606564319 | E22: =SQRT(ABS(H_1-H_3)^2+C22^2) -> 12.51136449 | F22: =SQRT(C22^2+(H_1+H_3)^2) -> 12.67455094 | G22: =F22-E22 -> 0.1631864449 | I22: =(er*SIN(D22)-SQRT(er-COS(D22)^2))/(er*SIN(D22)+SQRT(er-COS(D22)^2)) -> -0.1779741533 | J22: =(SIN(D22)-SQRT(er-COS(D22)^2))/(SIN(D22)+SQRT(er-COS(D22)^2)) -> -0.9253571011 | L22: =COS(G22*2*PI()/lambda)*SIGN(I22) -> 0.9847792728 | M22: =COS(G22*2*PI()/lambda)*SIGN(J22) -> 0.9847792728 | O22: =Pt_w*Gt_m*Gr_m*lambda^2/((4*PI()*E22)^2) -> 7.835996475e-08 | P22: =Pt_w*Gt_m*Gr_m*lambda^2/((4*PI()*F22)^2)*ABS(I22) -> 1.358924593e-08 | Q22: =Pt_w*Gt_m*Gr_m*lambda^2/((4*PI()*F22)^2)*ABS(J22) -> 7.06557946e-08 | S22: =O22+L22*P22 -> 9.174237247e-08 | T22: =O22+M22*Q22 -> 1.479403268e-07 | V22: =10*LOG10(O22*1000) -> -41.05905768 | W22: =10*LOG10(S22*1000) -> -40.37430033 | X22: =10*LOG10(T22*1000) -> -38.29913426 | Z22: -40.37430033 | AD22: -124 | AE22: =IF('LOS Range'!$H$18>index+$H$25,'LOS Range'!$H$22,AD22+'LOS Range'!$H$26) -> -108 | AJ22: Long Range - CC13xx CC1190 - 1.25 kbps (LRM) | AK22: -126 | AL22: 90 | AO22: 67.62569967 | AP22: 12.51133427 | AT22: 66.94094232 | AU22: 12.51133427 | BB22: 7" brick - 2 GHz (7,5 dB) | BC22: 7.5 | BE22: =VLOOKUP('LOS Range'!D29,BB19:BC37,2,FALSE) -> 0 | BJ22: DN024 - 863-928 MHz (CC_Antenna_DK2_#9) | BK22: -0.95 | BL22: 3.52 | BM22: 4.47 | BO22: -30 | BP22: -30 | BR22: 490 MHz | BS22: 490 | BT22: Low-band Sub-1GHz, China | BZ22: -110 | CA22: -110
B23: 4 | C23: 16.68177903 | D23: 0.1209465849 | E23: 16.6818017 | F23: 16.80453831 | G23: 0.1227366144 | I23: -0.3101886934 | J23: -0.9431627404 | L23: 0.6136541776 | M23: 0.6136541776 | O23: 4.407757334e-08 | P23: 1.347337441e-08 | Q23: 4.096727249e-08 | S23: 5.234556583e-08 | T23: 6.921731124e-08 | V23: -43.55782323 | W23: -42.81120101 | X23: -41.59785275 | Z23: -42.81120101 | AD23: -124 | AE23: =IF('LOS Range'!$H$18>index+$H$25,'LOS Range'!$H$22,AD23+'LOS Range'!$H$26) -> -108 | AJ23: Long Range - CC13xx CC1190 - 2.5 kbps (LRM) | AK23: -125 | AL23: 90 | AO23: 65.18879899 | AP23: 16.68177903 | AT23: 64.44217677 | AU23: 16.68177903 | BB23: 8" concrete - 500 MHz (21 dB) | BC23: 21 | BE23: =SUM(BE19:BE22) -> 16 | BJ23: DN038 - 863-928 MHz (CC_Antenna_DK2_#6) | BK23: -2.01 | BL23: 2.12 | BM23: 4.13 | BO23: -40 | BP23: -40 | BR23: 790 MHz | BS23: 790 | BT23: High-band Sub-1GHz, China | BZ23: -120 | CA23: -120
B24: 5 | C24: 20.85222379 | D24: 0.09692715138 | E24: 20.85224192 | F24: 20.95056069 | G24: 0.09831876678 | I24: -0.4061033225 | J24: -0.9541459033 | L24: 0.2150460701 | M24: 0.2150460701 | O24: 2.820967453e-08 | P24: 1.134877086e-08 | Q24: 2.666410892e-08 | S24: 3.065018311e-08 | T24: 3.394368637e-08 | V24: -45.49601924 | W24: -45.13566927 | X24: -44.69240994 | Z24: -45.13566927 | AD24: -124 | AE24: =IF('LOS Range'!$H$18>index+$H$25,'LOS Range'!$H$22,AD24+'LOS Range'!$H$26) -> -108 | AJ24: Long Range - CC13xx CC1190 - 5 kbps (LRM) | AK24: -123 | AL24: 90 | AO24: 62.86433073 | AP24: 20.85222379 | AT24: 62.50398076 | AU24: 20.85222379 | BB24: 8" concrete - 1 GHz (25 dB) | BC24: 25 | BJ24: Compact 779-787 MHz (hand held) | BK24: -2.5 | BO24: -50 | BP24: -50 | BR24: 868 MHz | BS24: 868 | BT24: High-band Sub-1GHz, Europe, Africa | BZ24: -130 | CA24: -130
B25: 6 | C25: 25.02266854 | D25: 0.08084990399 | E25: 25.02268365 | F25: 25.10467481 | G25: 0.08199115465 | I25: -0.4787325188 | J25: -0.9615845837 | L25: -0.08002794686 | M25: -0.08002794686 | O25: 1.959006217e-08 | P25: 9.317240667e-09 | Q25: 1.871465722e-08 | S25: 1.884442253e-08 | T25: 1.809236658e-08 | V25: -47.07964186 | W25: -47.24817167 | X25: -47.42504621 | Z25: -47.24817167 | AD25: -124 | AE25: =IF('LOS Range'!$H$18>index+$H$25,'LOS Range'!$H$22,AD25+'LOS Range'!$H$26) -> -108 | AJ25: CC11xL / CC110x - 0.6 kbps | AK25: -116 | AL25: 40 | AO25: 60.75182833 | AP25: 25.02266854 | AT25: 60.92035814 | AU25: 25.02266854 | BB25: 8" concrete - 2 GHz (32 dB) | BC25: 32 | BJ25: Compact 470-510 MHz (CC_Antenna_DK2_#4) | BK25: =BL25-BM25 -> -4.37 | BL25: 0.13 | BM25: 4.5 | BO25: -60 | BP25: -60 | BR25: 915 MHz | BS25: 915 | BT25: High-band Sub-1GHz, US, Australia | BZ25: -140 | CA25: -140
B26: 7 | C26: 29.1931133 | D26: 0.0693399676 | E26: 29.19312625 | F26: 29.26343487 | G26: 0.07030861756 | I26: -0.5355932752 | J26: -0.9669521218 | L26: -0.2883603835 | M26: -0.2883603835 | O26: 1.439270335e-08 | P26: 7.671637938e-09 | Q26: 1.385026087e-08 | S26: 1.218050689e-08 | T26: 1.039883681e-08 | V26: -48.41857626 | W26: -49.14334638 | X26: -49.83015237 | Z26: -49.14334638 | AD26: -124 | AE26: =IF('LOS Range'!$H$18>index+$H$25,'LOS Range'!$H$22,AD26+'LOS Range'!$H$26) -> -108 | AJ26: CC11xL / CC110x - 1.2 kbps | AK26: -112 | AL26: 40 | AN26: 50 | AO26: 58.85665362 | AP26: 29.1931133 | AT26: 59.58142374 | AU26: 29.1931133 | BB26: 1/2" drywall - 500 MHz (0,1 dB) | BC26: 0.1 | BJ26: Compact 433 MHz (CC_Antenna_DK2_#4) | BK26: -4.58 | BL26: 0.21 | BM26: 4.79 | BO26: -70 | BP26: -70 | BR26: 920 MHz | BS26: 920 | BT26: High-band Sub-1GHz, Japan | BZ26: -150 | CA26: -150
B27: 8 | C27: 33.36355806 | D27: 0.06069525537 | E27: 33.36356939 | F27: 33.42510677 | G27: 0.06153737784 | I27: -0.5812996791 | J27: -0.9710062357 | L27: -0.4367512665 | M27: -0.4367512665 | O27: 1.101941579e-08 | P27: 6.382018547e-09 | Q27: 1.066055948e-08 | S27: 8.23206111e-09 | T27: 6.363402938e-09 | V27: -49.57841429 | W27: -50.84491414 | X27: -51.96310576 | Z27: -50.84491414 | AD27: -124 | AE27: =IF('LOS Range'!$H$18>index+$H$25,'LOS Range'!$H$22,AD27+'LOS Range'!$H$26) -> -108 | AJ27: CC11xL / CC110x - 38.2 kbps | AK27: -104 | AL27: 40 | AN27: 50 | AO27: 57.15508586 | AP27: 33.36355806 | AT27: 58.42158571 | AU27: 33.36355806 | BB27: 1/2" drywall - 1 GHz (0,3 dB) | BC27: 0.3 | BJ27: Compact 169 MHz (CC_Antenna_DK2_#7) | BK27: -6 | BO27: -80 | BP27: -80 | BR27: 2.4 GHz | BS27: 2440 | BT27: Global
B28: 9 | C28: 37.53400281 | D28: 0.05396523878 | E28: 37.53401289 | F28: 37.58872336 | G28: 0.05471046724 | I28: -0.6188323418 | J28: -0.974175764 | L28: -0.5447611813 | M28: -0.5447611813 | O28: 8.70670014e-09 | P28: 5.372314596e-09 | Q28: 8.457183509e-09 | S28: 5.780071694e-09 | T28: 4.09955486e-09 | V28: -50.60146412 | W28: -52.38066775 | X28: -53.87263297 | Z28: -52.38066775 | AD28: -124 | AE28: =IF('LOS Range'!$H$18>index+$H$25,'LOS Range'!$H$22,AD28+'LOS Range'!$H$26) -> -108 | AJ28: CC11xL / CC110x - 250 kbps | AK28: -95 | AL28: 40 | AN28: 50 | AO28: 55.61933225 | AP28: 37.53400281 | AT28: 57.39853588 | AU28: 37.53400281 | BB28: 1/2" drywall - 2 GHz (0,6 dB) | BC28: 0.6 | BJ28: Compact 169 MHz (hand held) | BK28: -10 | BL28: 2.1 | BM28: 2.1 | BO28: -90 | BP28: -90 | BQ28: 456 | BR28: Custom | BS28: =BQ28 -> 456 | BT28: Custom
B29: 10 | C29: 41.70444757 | D29: 0.04857767078 | E29: 41.70445664 | F29: 41.75370287 | G29: 0.04924623337 | I29: -0.6501996199 | J29: -0.9767214055 | L29: -0.625248291 | M29: -0.625248291 | O29: 7.052427833e-09 | P29: 4.57467561e-09 | Q29: 6.872018154e-09 | S29: 4.192119725e-09 | T29: 2.755710226e-09 | V29: -51.51661349 | W29: -53.77566323 | X29: -55.59766452 | Z29: -53.77566323 | AD29: -124 | AE29: =IF('LOS Range'!$H$18>index+$H$25,'LOS Range'!$H$22,AD29+'LOS Range'!$H$26) -> -108 | AJ29: CC11xL / CC110x - 500 kbps (MSK) | AK29: -90 | AL29: 40 | AN29: 50 | AO29: 54.22433677 | AP29: 41.70444757 | AT29: 56.48338651 | AU29: 41.70444757 | BB29: 1/2" glass - 500 MHz (1,2 dB) | BC29: 1.2 | BJ29: -1 dB fixed gain | BK29: -1 | BO29: -100 | BP29: -100
B30: 11 | C30: 45.87489233 | D30: 0.04416754632 | E30: 45.87490057 | F30: 45.91967446 | G30: 0.04477388777 | I30: -0.676803045 | J30: -0.9788106835 | L30: -0.686570411 | M30: -0.686570411 | O30: 5.828453194e-09 | P30: 3.937026047e-09 | Q30: 5.693832474e-09 | S30: 3.125407603e-09 | T30: 1.919236293e-09 | V30: -52.34446687 | W30: -55.05093336 | X30: -57.16871553 | Z30: -55.05093336 | AD30: -124 | AE30: =IF('LOS Range'!$H$18>index+$H$25,'LOS Range'!$H$22,AD30+'LOS Range'!$H$26) -> -108 | AJ30: CC11xL / CC110x - 500 kbps (4-FSK) | AK30: -96 | AL30: 40 | AN30: 50 | AO30: 52.94906664 | AP30: 45.87489233 | AT30: 55.65553313 | AU30: 45.87489233 | BB30: 1/2" glass - 1 GHz (2,2 dB) | BC30: 2.2 | BJ30: -2 dB fixed gain | BK30: -2 | BO30: -110 | BP30: -110
B31: 12 | C31: 50.04533709 | D31: 0.0404911216 | E31: 50.04534464 | F31: 50.08639057 | G31: 0.04104592806 | I31: -0.6996499389 | J31: -0.9805561219 | L31: -0.7342352589 | M31: -0.7342352589 | O31: 4.897519979e-09 | P31: 3.420935723e-09 | Q31: 4.794425439e-09 | S31: 2.385748353e-09 | T31: 1.377283776e-09 | V31: -53.10023784 | W31: -56.22375367 | X31: -58.60976568 | Z31: -56.22375367 | AD31: -124 | AE31: =IF('LOS Range'!$H$18>index+$H$25,'LOS Range'!$H$22,AD31+'LOS Range'!$H$26) -> -108 | AJ31: CC111x - 1.2 kbps | AK31: -110 | AL31: 33 | AN31: 45 | AO31: 51.77624633 | AP31: 50.04533709 | AT31: 54.89976216 | AU31: 50.04533709 | BB31: 1/2" glass - 2 GHz (3,4 dB) | BC31: 3.4 | BJ31: -3 dB fixed gain | BK31: -3 | BO31: -120 | BP31: -120
B32: 13 | C32: 54.21578184 | D32: 0.03737944107 | E32: 54.21578882 | F32: 54.25367966 | G32: 0.03789084668 | I32: -0.7194826829 | J32: -0.9820360878 | L32: -0.7719494329 | M32: -0.7719494329 | O32: 4.173034961e-09 | P32: 2.998234056e-09 | Q32: 4.09234873e-09 | S32: 1.858549882e-09 | T32: 1.01394868e-09 | V32: -53.79547977 | W32: -57.30825778 | X32: -59.93984026 | Z32: -57.30825778 | AD32: -124 | AE32: =IF('LOS Range'!$H$18>index+$H$25,'LOS Range'!$H$22,AD32+'LOS Range'!$H$26) -> -108 | AJ32: CC111x - 38.2 kbps | AK32: -102 | AL32: 36 | AO32: 50.69174222 | AP32: 54.21578184 | AT32: 54.20452023 | AU32: 54.21578184 | BB32: 4" reinforced concrete - 500 MHz (23 dB) | BC32: 23 | BJ32: -6 dB fixed gain | BK32: -6 | BO32: -130 | BP32: -130
B33: 14 | C33: 58.3862266 | D33: 0.03471170752 | E33: 58.38623308 | F33: 58.42141913 | G33: 0.03518605093 | I33: -0.7368603346 | J33: -0.9833068297 | L33: -0.8022639874 | M33: -0.8022639874 | O33: 3.598178232e-09 | P33: 2.648162062e-09 | Q33: 3.533852644e-09 | S33: 1.473653177e-09 | T33: 7.63095519e-10 | V33: -54.43917328 | W33: -58.31604715 | X33: -61.17421097 | Z33: -58.31604715 | AD33: -124 | AE33: =IF('LOS Range'!$H$18>index+$H$25,'LOS Range'!$H$22,AD33+'LOS Range'!$H$26) -> -108 | AJ33: CC111x - 250 kbps | AK33: -94 | AL33: 40 | AN33: 50 | AO33: 49.68395285 | AP33: 58.3862266 | AT33: 53.56082672 | AU33: 58.3862266 | BB33: 4" reinforced concrete - 1 GHz (27 dB) | BC33: 27 | BJ33: -10 dB fixed gain | BK33: -10
B34: 15 | C34: 62.55667136 | D34: 0.03239927054 | E34: 62.5566774 | F34: 62.58951899 | G34: 0.03284158942 | I34: -0.752211865 | J34: -0.9844097622 | L34: -0.8269732322 | M34: -0.8269732322 | O34: 3.134413127e-09 | P34: 2.355269113e-09 | Q34: 3.082309672e-09 | S34: 1.186668616e-09 | T34: 5.854255349e-10 | V34: -55.03843762 | W34: -59.25670543 | X34: -62.32528339 | Z34: -59.25670543 | AD34: -124 | AE34: =IF('LOS Range'!$H$18>index+$H$25,'LOS Range'!$H$22,AD34+'LOS Range'!$H$26) -> -108 | AJ34: CC111x - 500 kbps (MSK) | AK34: -86 | AL34: 40 | AO34: 48.74329457 | AP34: 62.55667136 | AT34: 52.96156238 | AU34: 62.55667136 | BB34: 4" reinforced concrete - 2 GHz (31 dB) | BC34: 31
B35: 16 | C35: 66.72711611 | D35: 0.03037560296 | E35: 66.72712178 | F35: 66.75791175 | G35: 0.03078996867 | I35: -0.7658718822 | J35: -0.9853760513 | L35: -0.8473650517 | M35: -0.8473650517 | O35: 2.754855352e-09 | P35: 2.107920485e-09 | Q35: 2.712065049e-09 | S35: 9.686772017e-10 | T35: 4.567462118e-10 | V35: -55.599012 | W35: -60.13820921 | X35: -63.40325046 | Z35: -60.13820921 | AD35: -124 | AE35: =IF('LOS Range'!$H$18>index+$H$25,'LOS Range'!$H$22,AD35+'LOS Range'!$H$26) -> -108 | AJ35: CC112x - 0.3 kbps (CG - 4 kHz fdev) | AK35: -127 | AL35: 91 | AN35: 87 | AO35: 47.86179079 | AP35: 66.72711611 | AT35: 52.400988 | AU35: 66.72711611 | BB35: 3" lumber - 500 MHz (1,5 dB) | BC35: 1.5
B36: 17 | C36: 70.89756087 | D36: 0.02858980668 | E36: 70.8975662 | F36: 70.92654576 | G36: 0.02897955745 | I36: -0.7781052057 | J36: -0.9862295985 | L36: -0.8643812017 | M36: -0.8643812017 | O36: 2.440287141e-09 | P36: 1.897248801e-09 | Q36: 2.404717137e-09 | S36: 8.00340943e-10 | T36: 3.616948523e-10 | V36: -56.12559069 | W36: -60.96724965 | X36: -64.41657672 | Z36: -60.96724965 | AD36: -124 | AE36: =IF('LOS Range'!$H$18>index+$H$25,'LOS Range'!$H$22,AD36+'LOS Range'!$H$26) -> -108 | AJ36: CC112x - 1.2 kbps (4 kHz fdev) | AK36: -123 | AL36: 87 | AN36: 82 | AO36: 47.03275035 | AP36: 70.89756087 | AT36: 51.87440931 | AU36: 70.89756087 | BB36: 3" lumber - 1 GHz (3 dB) | BC36: 3
B37: 18 | C37: 75.06800563 | D37: 0.02700227871 | E37: 75.06801067 | F37: 75.09538085 | G37: 0.02737018629 | I37: -0.7891241483 | J37: -0.9869890401 | L37: -0.8787221264 | M37: -0.8787221264 | O37: 2.176675911e-09 | P37: 1.716415668e-09 | Q37: 2.146789522e-09 | S37: 6.684234856e-10 | T37: 2.90244458e-10 | V37: -56.62206229 | W37: -61.74948299 | X37: -65.37236064 | Z37: -61.74948299 | AD37: -124 | AE37: =IF('LOS Range'!$H$18>index+$H$25,'LOS Range'!$H$22,AD37+'LOS Range'!$H$26) -> -108 | AJ37: CC112x - 1.2 kbps (10 kHz fdev) | AK37: -120 | AL37: 88 | AN37: 86 | AO37: 46.25051701 | AP37: 75.06800563 | AT37: 51.37793771 | AU37: 75.06800563 | BB37: 3" lumber - 2 GHz (4,7 dB) | BC37: 4.7
B38: 19 | C38: 79.23845039 | D38: 0.02558174331 | E38: 79.23845516 | F38: 79.26438529 | G38: 0.02593013468 | I38: -0.7991009068 | J38: -0.9876691209 | L38: -0.8909169056 | M38: -0.8909169056 | O38: 1.953581731e-09 | P38: 1.560087714e-09 | Q38: 1.92823015e-09 | S38: 5.636732126e-10 | T38: 2.35688893e-10 | V38: -57.09168415 | W38: -62.48972604 | X38: -66.27660883 | Z38: -62.48972604 | AD38: -124 | AE38: =IF('LOS Range'!$H$18>index+$H$25,'LOS Range'!$H$22,AD38+'LOS Range'!$H$26) -> -108 | AJ38: CC112x - 1.2 kbps (20 kHz fdev) | AK38: -117 | AL38: 81 | AN38: 106 | AO38: 45.51027396 | AP38: 79.23845039 | AT38: 50.90831585 | AU38: 79.23845039
B39: 20 | C39: 83.40889514 | D39: 0.02430317299 | E39: 83.40889968 | F39: 83.4335337 | G39: 0.02463402096 | I39: -0.8081766053 | J39: -0.9882816591 | L39: -0.9013708454 | M39: -0.9013708454 | O39: 1.763107533e-09 | P39: 1.424060971e-09 | Q39: 1.741418064e-09 | S39: 4.795004917e-10 | T39: 1.934440608e-10 | V39: -57.53721199 | W39: -63.19210943 | X39: -67.134446 | Z39: -63.19210943 | AD39: -124 | AE39: =IF('LOS Range'!$H$18>index+$H$25,'LOS Range'!$H$22,AD39+'LOS Range'!$H$26) -> -108 | AJ39: CC112x - 4.8 kbps (OOK) | AK39: -114 | AL39: 75 | AO39: 44.80789057 | AP39: 83.40889514 | AT39: 50.46278801 | AU39: 83.40889514
B40: 21 | C40: 87.5793399 | D40: 0.02314630266 | E40: 87.57934422 | F40: 87.60280551 | G40: 0.02346129447 | I40: -0.8164679982 | J40: -0.988836238 | L40: -0.9103984457 | M40: -0.9103984457 | O40: 1.599190522e-09 | P40: 1.304988614e-09 | Q40: 1.580490643e-09 | S40: 4.111309164e-10 | T40: 1.603142971e-10 | V40: -57.96099793 | W40: -63.86019864 | X40: -67.95027745 | Z40: -63.86019864 | AD40: -124 | AE40: =IF('LOS Range'!$H$18>index+$H$25,'LOS Range'!$H$22,AD40+'LOS Range'!$H$26) -> -108 | AJ40: CC112x - 38.4 kbps (20 kHz fdev) | AK40: -110 | AL40: 74 | AN40: 66 | AO40: 44.13980136 | AP40: 87.5793399 | AT40: 50.03900207 | AU40: 87.5793399
B41: 22 | C41: 91.74978466 | D41: 0.02209454851 | E41: 91.74978878 | F41: 91.77218392 | G41: 0.02239513852 | I41: -0.8240725108 | J41: -0.9893407102 | L41: -0.9182466267 | M41: -0.9182466267 | O41: 1.457113691e-09 | P41: 1.200181364e-09 | Q41: 1.440878402e-09 | S41: 3.550512025e-10 | T41: 1.340319589e-10 | V41: -58.36506561 | W41: -64.49709012 | X41: -68.72791635 | Z41: -64.49709012 | AD41: -124 | AE41: =IF('LOS Range'!$H$18>index+$H$25,'LOS Range'!$H$22,AD41+'LOS Range'!$H$26) -> -108 | AJ41: CC112x - 50 kbps (25 kHz fdev) | AK41: -110 | AL41: 74 | AN41: 65 | AO41: 43.50290988 | AP41: 91.74978466 | AT41: 49.63493439 | AU41: 91.74978466
B42: 23 | C42: 95.92022941 | D42: 0.02113420849 | E42: 95.92023336 | F42: 95.94165502 | G42: 0.02142165927 | I42: -0.8310720789 | J42: -0.9898015714 | L42: -0.9251113463 | M42: -0.9251113463 | O42: 1.333162631e-09 | P42: 1.107459531e-09 | Q42: 1.318977273e-09 | S42: 3.086392534e-10 | T42: 1.129617907e-10 | V42: -58.75116868 | W42: -65.1054884 | X42: -69.47068432 | Z42: -65.1054884 | AD42: -124 | AE42: =IF('LOS Range'!$H$18>index+$H$25,'LOS Range'!$H$22,AD42+'LOS Range'!$H$26) -> -108 | AJ42: CC112x - 200 kbps (83 kHz fdev) | AK42: -103 | AL42: 67 | AN42: 59 | AO42: 42.8945116 | AP42: 95.92022941 | AT42: 49.24883132 | AU42: 95.92022941 | BB42: Theoretically, there is an optimum separation/datarate setting if you simultaneously minimize the Rx filter bandwidth. Every halving of Rx filter bandwidth increases sensitivity with 3 dB whereas sensitivity vs separation/datarate (modulation index) decreases with about 1.5-2.5 dB per halving down to a certain limit where the loss increases very fast (I wouldn't go below a modulation index less than 0.5). Our experience is to that a modulation index of 1 is a good compromise. Note that the frequency offset between Rx and Tx needs to be taken into account when selecting the Rx filter bandwidth.
B43: 24 | C43: 100.0906742 | D43: 0.02025386251 | E43: 100.0906779 | F43: 100.1112072 | G43: 0.02052927722 | I43: -0.8375361085 | J43: -0.9902242412 | L43: -0.9311496636 | M43: -0.9311496636 | O43: 1.224380272e-09 | P43: 1.025042159e-09 | Q43: 1.211913831e-09 | S43: 2.699126104e-10 | T43: 9.590711561e-11 | V43: -59.12083677 | W43: -65.68776825 | X43: -70.1814917 | Z43: -65.68776825 | AD43: -124 | AE43: =IF('LOS Range'!$H$18>index+$H$25,'LOS Range'!$H$22,AD43+'LOS Range'!$H$26) -> -108 | AJ43: CC120x - 1.2 kbps (4 kHz fdev) | AK43: -122 | AL43: 82 | AN43: 75 | AO43: 42.31223175 | AP43: 100.0906742 | AT43: 48.87916323 | AU43: 100.0906742
B44: 25 | C44: 104.2611189 | D44: 0.01944391644 | E44: 104.2611226 | F44: 104.2808308 | G44: 0.01970826461 | I44: -0.843523782 | J44: -0.9906132773 | L44: -0.9364886118 | M44: -0.9364886118 | O44: 1.128388865e-09 | P44: 9.514631031e-10 | Q44: 1.117374522e-09 | S44: 2.373545047e-10 | T44: 8.198035028e-11 | V44: -59.47541208 | W44: -66.24602521 | X44: -70.8629023 | Z44: -66.24602521 | AD44: -124 | AE44: =IF('LOS Range'!$H$18>index+$H$25,'LOS Range'!$H$22,AD44+'LOS Range'!$H$26) -> -108 | AJ44: CC120x - 4.8 kbps (OOK) | AK44: -113 | AL44: 72 | AO44: 41.75397479 | AP44: 104.2611189 | AT44: 48.52458792 | AU44: 104.2611189
B45: 26 | C45: 108.4315637 | D45: 0.01869625124 | E45: 108.4315672 | F45: 108.4505176 | G45: 0.01895038959 | I45: -0.8490858734 | J45: -0.9909725399 | L45: -0.9412318064 | M45: -0.9412318064 | O45: 1.043258942e-09 | P45: 8.855068857e-10 | Q45: 1.033479693e-09 | S45: 2.09791696e-10 | T45: 7.051498351e-11 | V45: -59.81607884 | W45: -66.78211706 | X45: -71.51718591 | Z45: -66.78211706 | AD45: -124 | AE45: =IF('LOS Range'!$H$18>index+$H$25,'LOS Range'!$H$22,AD45+'LOS Range'!$H$26) -> -108 | AJ45: CC120x - 32.768 kbps (50 kHz fdev) | AK45: -108 | AL45: 70 | AN45: 66 | AO45: 41.21788294 | AP45: 108.4315637 | AT45: 48.18392116 | AU45: 108.4315637
B46: 27 | C46: 112.6020084 | D46: 0.01800394999 | E46: 112.6020118 | F46: 112.6202604 | G46: 0.01824863926 | I46: -0.8542661898 | J46: -0.9913053203 | L46: -0.945464423 | M46: -0.945464423 | O46: 9.674115883e-10 | P46: 8.261592098e-10 | Q46: 9.586894926e-10 | S46: 1.863074477e-10 | T46: 6.100478028e-11 | V46: -60.14388715 | W46: -67.29769784 | X46: -72.14636133 | Z46: -67.29769784 | AD46: -124 | AE46: =IF('LOS Range'!$H$18>index+$H$25,'LOS Range'!$H$22,AD46+'LOS Range'!$H$26) -> -108 | AJ46: CC120x - 38.4 kbps (20 kHz fdev) | AK46: -110 | AL46: 72 | AN46: 64 | AO46: 40.70230216 | AP46: 112.6020084 | AT46: 47.85611285 | AU46: 112.6020084
B47: 28 | C47: 116.7724532 | D47: 0.01736108337 | E47: 116.7724564 | F47: 116.7900534 | G47: 0.0175970022 | I47: -0.8591027267 | J47: -0.9916144421 | L47: -0.9492569873 | M47: -0.9492569873 | O47: 8.995447076e-10 | P47: 7.725684495e-10 | Q47: 8.917327442e-10 | S47: 1.661787088e-10 | T47: 5.306116941e-11 | V47: -60.45977247 | W47: -67.7942462 | X47: -72.75223183 | Z47: -67.7942462 | AD47: -124 | AE47: =IF('LOS Range'!$H$18>index+$H$25,'LOS Range'!$H$22,AD47+'LOS Range'!$H$26) -> -108 | AJ47: CC120x - 50 kbps (25 kHz fdev) | AK47: -109 | AL47: 71 | AN47: 65 | AO47: 40.2057538 | AP47: 116.7724532 | AT47: 47.54022753 | AU47: 116.7724532
B48: 29 | C48: 120.942898 | D48: 0.01676253946 | E48: 120.9429011 | F48: 120.9598914 | G48: 0.01699029581 | I48: -0.8636286006 | J48: -0.9919023413 | L48: -0.9526682893 | M48: -0.9526682893 | O48: 8.38576758e-10 | P48: 7.240154354e-10 | Q48: 8.315525969e-10 | S48: 1.488302117e-10 | T48: 4.638296804e-11 | V48: -60.76457179 | W48: -68.27308901 | X48: -73.33641464 | Z48: -68.27308901 | AD48: -124 | AE48: =IF('LOS Range'!$H$18>index+$H$25,'LOS Range'!$H$22,AD48+'LOS Range'!$H$26) -> -108 | AJ48: CC120x - 100 kbps (50 kHz fdev) | AK48: -107 | AL48: 68 | AN48: 63 | AO48: 39.72691099 | AP48: 120.942898 | AT48: 47.23542821 | AU48: 120.942898
B49: 30 | C49: 125.1133427 | D49: 0.01620388763 | E49: 125.1133457 | F49: 125.1297698 | G49: 0.01642402826 | I49: -0.8678728072 | J49: -0.9921711307 | L49: -0.9557476443 | M49: -0.9557476443 | O49: 7.836033954e-10 | P49: 6.798895642e-10 | Q49: 7.772645854e-10 | S49: 1.33800546e-10 | T49: 4.073459891e-11 | V49: -61.05903691 | W49: -68.73542114 | X49: -73.90036556 | Z49: -68.73542114 | AD49: -124 | AE49: =IF('LOS Range'!$H$18>index+$H$25,'LOS Range'!$H$22,AD49+'LOS Range'!$H$26) -> -108 | AJ49: CC120x - 500 kbps (MSK) | AK49: -97 | AL49: 57 | AN49: 42 | AO49: 39.26457886 | AP49: 125.1133427 | AT49: 46.94096309 | AU49: 125.1133427
B50: 31 | C50: 129.2837875 | D50: 0.01568126869 | E50: 129.2837904 | F50: 129.2996847 | G50: 0.01589428713 | I50: -0.8718608436 | J50: -0.9924226514 | L50: -0.9585366639 | M50: -0.9585366639 | O50: 7.33863744e-10 | P50: 6.396697699e-10 | Q50: 7.281239589e-10 | S50: 1.207168167e-10 | T50: 3.593023348e-11 | V50: -61.34384568 | W50: -69.18232225 | X50: -74.44539961 | Z50: -69.18232225 | AD50: -124 | AE50: =IF('LOS Range'!$H$18>index+$H$25,'LOS Range'!$H$22,AD50+'LOS Range'!$H$26) -> -108 | AJ50: CC120x - 1 Mbps (4-GFSK) | AK50: -97 | AL50: 59 | AN50: 52 | AO50: 38.81767775 | AP50: 129.2837875 | AT50: 46.65615432 | AU50: 129.2837875
B51: 32 | C51: 133.4542322 | D51: 0.01519130565 | E51: 133.4542351 | F51: 133.4696327 | G51: 0.0153976489 | I51: -0.8756152199 | J51: -0.9926585158 | L51: -0.9610706526 | M51: -0.9610706526 | O51: 6.887139257e-10 | P51: 6.029092629e-10 | Q51: 6.835000128e-10 | S51: 1.09275527e-10 | T51: 3.182212236e-11 | V51: -61.61961136 | W51: -69.6147709 | X51: -74.97270859 | Z51: -69.6147709 | AD51: -124 | AE51: =IF('LOS Range'!$H$18>index+$H$25,'LOS Range'!$H$22,AD51+'LOS Range'!$H$26) -> -108 | AJ51: CC13x0 - 0.625 kbps (LRM) | AK51: -124 | AL51: 90 | AN51: 79 | AO51: 38.3852291 | AP51: 133.4542322 | AT51: 46.38038864 | AU51: 133.4542322
B52: 33 | C52: 137.624677 | D52: 0.01473103069 | E52: 137.6246797 | F52: 137.6396108 | G52: 0.01493110491 | I52: -0.8791558843 | J52: -0.9928801413 | L52: -0.9633797184 | M52: -0.9633797184 | O52: 6.476061173e-10 | P52: 5.692232103e-10 | Q52: 6.42855757e-10 | S52: 9.922802124e-11 | T52: 2.82919192e-11 | V52: -61.88689058 | W52: -70.03365669 | X52: -75.48337591 | Z52: -70.03365669 | AD52: -124 | AE52: =IF('LOS Range'!$H$18>index+$H$25,'LOS Range'!$H$22,AD52+'LOS Range'!$H$26) -> -108 | AJ52: CC13x0 - 1.25 kbps (LRM) | AK52: -123 | AL52: 90 | AO52: 37.96634331 | AP52: 137.624677 | AT52: 46.11310942 | AU52: 137.624677
B53: 34 | C53: 141.7951217 | D53: 0.01429782502 | E53: 141.7951244 | F53: 141.8096164 | G53: 0.01449200034 | I53: -0.8825005775 | J53: -0.9930887794 | L53: -0.9654896629 | M53: -0.9654896629 | O53: 6.100718541e-10 | P53: 5.382787297e-10 | Q53: 6.057316905e-10 | S53: 9.036930483e-11 | T53: 2.524416844e-11 | V53: -62.14619011 | W53: -70.43979059 | X53: -75.97838931 | Z53: -70.43979059 | AD53: -124 | AE53: =IF('LOS Range'!$H$18>index+$H$25,'LOS Range'!$H$22,AD53+'LOS Range'!$H$26) -> -108 | AJ53: CC13x0 - 2.5 kbps (LRM) | AK53: -122 | AL53: 90 | AO53: 37.56020941 | AP53: 141.7951217 | AT53: 45.85380989 | AU53: 141.7951217
B54: 35 | C54: 145.9655665 | D54: 0.01388936904 | E54: 145.9655691 | F54: 145.9796471 | G54: 0.01407798372 | I54: -0.8856651296 | J54: -0.9932855392 | L54: -0.9674226983 | M54: -0.9674226983 | O54: 5.757086244e-10 | P54: 5.097867136e-10 | Q54: 5.717327619e-10 | S54: 8.25293864e-11 | T54: 2.260137317e-11 | V54: -62.39797265 | W54: -70.83391384 | X54: -76.45865174 | Z54: -70.83391384 | AD54: -124 | AE54: =IF('LOS Range'!$H$18>index+$H$25,'LOS Range'!$H$22,AD54+'LOS Range'!$H$26) -> -108 | AJ54: CC13x0 - 5 kbps (LRM) | AK54: -120 | AL54: 90 | AO54: 37.16608616 | AP54: 145.9655665 | AT54: 45.60202735 | AU54: 145.9655665
B55: 36 | C55: 150.1360113 | D55: 0.0135036008 | E55: 150.1360138 | F55: 150.1497007 | G55: 0.01368696478 | I55: -0.8886637106 | J55: -0.9934714067 | L55: -0.9691980289 | M55: -0.9691980289 | O55: 5.441690326e-10 | P55: 4.834951132e-10 | Q55: 5.405178185e-10 | S55: 7.556652186e-11 | T55: 2.030022826e-11 | V55: -62.64266177 | W55: -71.21670567 | X55: -76.92499079 | Z55: -71.21670567 | AD55: -124 | AE55: =IF('LOS Range'!$H$18>index+$H$25,'LOS Range'!$H$22,AD55+'LOS Range'!$H$26) -> -108 | AJ55: CC13x0 - 50 kbps | AK55: -110 | AL55: 75 | AN55: 65 | AO55: 36.78329433 | AP55: 150.1360113 | AT55: 45.35733823 | AU55: 150.1360113
B56: 37 | C56: 154.306456 | D56: 0.0131386812 | E56: 154.3064585 | F56: 154.3197755 | G56: 0.0133170792 | I56: -0.8915090427 | J56: -0.9936472621 | L56: -0.9708323268 | M56: -0.9708323268 | O56: 5.15151985e-10 | P56: 4.59183392e-10 | Q56: 5.117910177e-10 | S56: 6.936190416e-11 | T56: 1.828872046e-11 | V56: -62.88064622 | W56: -71.58878993 | X56: -77.37816678 | Z56: -71.58878993 | AD56: -124 | AE56: =IF('LOS Range'!$H$18>index+$H$25,'LOS Range'!$H$22,AD56+'LOS Range'!$H$26) -> -108 | AJ56: CC13x0 - 100 kbps | AK56: -107 | AL56: 75 | AO56: 36.41121007 | AP56: 154.306456 | AT56: 45.11935378 | AU56: 154.306456
B57: 38 | C57: 158.4769008 | D57: 0.01279296467 | E57: 158.4769032 | F57: 158.4898698 | G57: 0.01296665881 | I57: -0.8942125801 | J57: -0.9938138931 | L57: -0.972340121 | M57: -0.972340121 | O57: 4.883954769e-10 | P57: 4.366579215e-10 | Q57: 4.852947929e-10 | S57: 6.381546069e-11 | T57: 1.652387924e-11 | V57: -63.11228367 | W57: -71.95074091 | X57: -77.81887988 | Z57: -71.95074091 | AD57: -124 | AE57: =IF('LOS Range'!$H$18>index+$H$25,'LOS Range'!$H$22,AD57+'LOS Range'!$H$26) -> -108 | AJ57: CC13x0 - 1 Mbps | AK57: -97 | AL57: 75 | AO57: 36.04925909 | AP57: 158.4769008 | AT57: 44.88771633 | AU57: 158.4769008
B58: 39 | C58: 162.6473455 | D58: 0.01246497435 | E58: 162.6473479 | F58: 162.6599821 | G58: 0.01263420656 | I58: -0.8967846636 | J58: -0.9939720068 | L58: -0.9737341195 | M58: -0.9737341195 | O58: 4.636706573e-10 | P58: 4.157481425e-10 | Q58: 4.608040618e-10 | S58: 5.884250579e-11 | T58: 1.497001993e-11 | V58: -63.33790387 | W58: -72.30308841 | X58: -78.24777621 | Z58: -72.30308841 | AD58: -124 | AE58: =IF('LOS Range'!$H$18>index+$H$25,'LOS Range'!$H$22,AD58+'LOS Range'!$H$26) -> -108 | AJ58: CC13x0 - 4 Mbps | AK58: -84 | AL58: 75 | AO58: 35.69691159 | AP58: 162.6473455 | AT58: 44.66209613 | AU58: 162.6473455
B59: 40 | C59: 166.8177903 | D59: 0.01215338107 | E59: 166.8177926 | F59: 166.8301109 | G59: 0.01231837502 | I59: -0.8992346523 | J59: -0.9941222399 | L59: -0.975025476 | M59: -0.975025476 | O59: 4.407769192e-10 | P59: 3.963033488e-10 | Q59: 4.381214312e-10 | S59: 5.437105788e-11 | T59: 1.359736224e-11 | V59: -63.55781155 | W59: -72.64632217 | X59: -78.66545332 | Z59: -72.64632217 | AD59: -124 | AE59: =IF('LOS Range'!$H$18>index+$H$25,'LOS Range'!$H$22,AD59+'LOS Range'!$H$26) -> -108 | AJ59: CC2500 - 2.4 kbps | AK59: -104 | AL59: 64 | AO59: 35.35367783 | AP59: 166.8177903 | AT59: 44.44218845 | AU59: 166.8177903
B60: 41 | C60: 170.988235 | D60: 0.01185698527 | E60: 170.9882373 | F60: 171.0002552 | G60: 0.01201794824 | I60: -0.9015710376 | J60: -0.9942651673 | L60: -0.9762240121 | M60: -0.9762240121 | O60: 4.195378178e-10 | P60: 3.781899814e-10 | Q60: 4.170732083e-10 | S60: 5.033967676e-11 | T60: 1.238093699e-11 | V60: -63.77228885 | W60: -72.98089577 | X60: -79.07246487 | Z60: -72.98089577 | AD60: -124 | AE60: =IF('LOS Range'!$H$18>index+$H$25,'LOS Range'!$H$22,AD60+'LOS Range'!$H$26) -> -108 | AJ60: CC2500 - 10 kbps | AK60: -99 | AL60: 59 | AO60: 35.01910423 | AP60: 170.988235 | AT60: 44.22771115 | AU60: 170.988235
B61: 42 | C61: 175.1586798 | D61: 0.01157470162 | E61: 175.158682 | F61: 175.1704138 | G61: 0.01173182602 | I61: -0.9038015412 | J61: -0.9944013092 | L61: -0.9773384038 | M61: -0.9773384038 | O61: 3.997976602e-10 | P61: 3.612893427e-10 | Q61: 3.975060663e-10 | S61: 4.669571063e-11 | T61: 1.129971578e-11 | V61: -63.98159752 | W61: -73.30723011 | X61: -79.4693248 | Z61: -73.30723011 | AD61: -124 | AE61: =IF('LOS Range'!$H$18>index+$H$25,'LOS Range'!$H$22,AD61+'LOS Range'!$H$26) -> -108 | AJ61: CC2500 - 250 kbps | AK61: -89 | AL61: 46 | AO61: 34.69276989 | AP61: 175.1586798 | AT61: 44.01840248 | AU61: 175.1586798
B62: 43 | C62: 179.3291246 | D62: 0.01130554572 | E62: 179.3291267 | F62: 179.3405857 | G62: 0.0114590105 | I62: -0.9059332008 | J62: -0.9945311375 | L62: -0.9783763378 | M62: -0.9783763378 | O62: 3.814186443e-10 | P62: 3.45495658e-10 | Q62: 3.792842446e-10 | S62: 4.339386769e-11 | T62: 1.033591407e-11 | V62: -64.18598082 | W62: -73.62571639 | X62: -79.8565111 | Z62: -73.62571639 | AD62: -124 | AE62: =IF('LOS Range'!$H$18>index+$H$25,'LOS Range'!$H$22,AD62+'LOS Range'!$H$26) -> -108 | AJ62: CC2500 - 500 kbps | AK62: -83 | AL62: 40 | AO62: 34.37428361 | AP62: 179.3291246 | AT62: 43.81401918 | AU62: 179.3291246
B63: 44 | C63: 183.4995693 | D63: 0.01104862266 | E63: 183.4995714 | F63: 183.51077 | G63: 0.01119859453 | I63: -0.9079724439 | J63: -0.9946550814 | L63: -0.9793446438 | M63: -0.9793446438 | O63: 3.642784473e-10 | P63: 3.307144253e-10 | Q63: 3.622871881e-10 | S63: 4.039504635e-11 | T63: 9.474430178e-12 | V63: -64.38566523 | W63: -73.93671889 | X63: -80.234469 | Z63: -73.93671889 | AD63: -124 | AE63: =IF('LOS Range'!$H$18>index+$H$25,'LOS Range'!$H$22,AD63+'LOS Range'!$H$26) -> -108 | AJ63: CC251x - 10 kbps | AK63: -98 | AL63: 59 | AO63: 34.06328111 | AP63: 183.4995693 | AT63: 43.61433477 | AU63: 183.4995693
B64: 45 | C64: 187.6700141 | D64: 0.01080311703 | E64: 187.6700161 | F64: 187.6809658 | G64: 0.01094975156 | I64: -0.9099251526 | J64: -0.9947735322 | L64: -0.9802494061 | M64: -0.9802494061 | O64: 3.482681851e-10 | P64: 3.168610054e-10 | Q64: 3.464075486e-10 | S64: 3.766537273e-11 | T64: 8.702391266e-12 | V64: -64.58086197 | W64: -74.24057731 | X64: -80.60361394 | Z64: -74.24057731 | AD64: -124 | AE64: =IF('LOS Range'!$H$18>index+$H$25,'LOS Range'!$H$22,AD64+'LOS Range'!$H$26) -> -108 | AJ64: CC251x - 250 kbps | AK64: -90 | AL64: 46 | AO64: 33.75942269 | AP64: 187.6700141 | AT64: 43.41913803 | AU64: 187.6700141
B65: 46 | C65: 191.8404588 | D65: 0.01056828434 | E65: 191.8404608 | F65: 191.8511725 | G65: 0.01071172693 | I65: -0.9117967201 | J65: -0.994886847 | L65: -0.9810960599 | M65: -0.9810960599 | O65: 3.332906784e-10 | P65: 3.038594134e-10 | Q65: 3.315494859e-10 | S65: 3.517540509e-11 | T65: 8.008784105e-12 | V65: -64.77176833 | W65: -74.53760892 | X65: -80.96433414 | Z65: -74.53760892 | AD65: -124 | AE65: =IF('LOS Range'!$H$18>index+$H$25,'LOS Range'!$H$22,AD65+'LOS Range'!$H$26) -> -108 | AJ65: CC251x - 500 kbps | AK65: -82 | AL65: 50 | AO65: 33.46239108 | AP65: 191.8404588 | AT65: 43.22823167 | AU65: 191.8404588
B66: 47 | C66: 196.0109036 | D66: 0.01034344344 | E66: 196.0109055 | F66: 196.0213893 | G66: 0.01048383017 | I66: -0.9135921006 | J66: -0.9949953529 | L66: -0.9818894715 | M66: -0.9818894715 | O66: 3.192589751e-10 | P66: 2.916412795e-10 | Q66: 3.176272185e-10 | S66: 3.289947335e-11 | T66: 7.384153401e-12 | V66: -64.95856885 | W66: -74.82811054 | X66: -81.3169929 | Z66: -74.82811054 | AD66: -124 | AE66: =IF('LOS Range'!$H$18>index+$H$25,'LOS Range'!$H$22,AD66+'LOS Range'!$H$26) -> -108 | AJ66: CC2520 - 250 kbps | AK66: -98 | AL66: 54 | AO66: 33.17188946 | AP66: 196.0109036 | AT66: 43.04143115 | AU66: 196.0109036
B67: 48 | C67: 200.1813483 | D67: 0.01012796992 | E67: 200.1813502 | F67: 200.1916157 | G67: 0.01026542836 | I67: -0.9153158533 | J67: -0.9950993495 | L67: -0.9826340092 | M67: -0.9826340092 | O67: 3.060950853e-10 | P67: 2.801449514e-10 | Q67: 3.04563783e-10 | S67: 3.081512854e-11 | T67: 6.820354165e-12 | V67: -65.14143643 | W67: -75.11236016 | X67: -81.66193073 | Z67: -75.11236016 | AD67: -124 | AE67: =IF('LOS Range'!$H$18>index+$H$25,'LOS Range'!$H$22,AD67+'LOS Range'!$H$26) -> -108 | AJ67: CC2530 - 250 kbps | AK67: -97 | AL67: 57 | AN67: 29 | AO67: 32.88763984 | AP67: 200.1813483 | AT67: 42.85856357 | AU67: 200.1813483
B68: 49 | C68: 204.3517931 | D68: 0.009921290365 | E68: 204.351795 | F68: 204.3618509 | G68: 0.01005594025 | I68: -0.9169721804 | J68: -0.9951991122 | L68: -0.9833336024 | M68: -0.9833336024 | O68: 2.937288951e-10 | P68: 2.693147193e-10 | Q68: 2.922899683e-10 | S68: 2.890268196e-11 | T68: 6.310347595e-12 | V68: -65.32053328 | W68: -75.39061856 | X68: -81.99946718 | Z68: -75.39061856 | AD68: -124 | AE68: =IF('LOS Range'!$H$18>index+$H$25,'LOS Range'!$H$22,AD68+'LOS Range'!$H$26) -> -108 | AJ68: CC2538 - 250 kbps | AK68: -97 | AL68: 52 | AN68: 28 | AO68: 32.60938144 | AP68: 204.3517931 | AT68: 42.67946672 | AU68: 204.3517931
B69: 50 | C69: 208.5222379 | D69: 0.00972287719 | E69: 208.5222397 | F69: 208.5320945 | G69: 0.009854831045 | I69: -0.918564962 | J69: -0.9952948943 | L69: -0.983991794 | M69: -0.983991794 | O69: 2.820972311e-10 | P69: 2.591001414e-10 | Q69: 2.807433971e-10 | S69: 2.714481808e-11 | T69: 5.848032106e-12 | V69: -65.49601177 | W69: -75.66313065 | X69: -82.32990252 | Z69: -75.66313065 | AD69: -124 | AE69: =IF('LOS Range'!$H$18>index+$H$25,'LOS Range'!$H$22,AD69+'LOS Range'!$H$26) -> -108 | AJ69: CC2540 - 1 Mbpd (BLE) | AK69: -93 | AL69: 30 | AM69: 32 | AO69: 32.33686935 | AP69: 208.5222379 | AT69: 42.50398823 | AU69: 208.5222379
B70: 51 | C70: 212.6926826 | D70: 0.009532244203 | E70: 212.6926844 | F70: 212.702346 | G70: 0.009661607932 | I70: -0.920097786 | J70: -0.9953869296 | L70: -0.9846117846 | M70: -0.9846117846 | O70: 2.711430519e-10 | P70: 2.494554581e-10 | Q70: 2.698677318e-10 | S70: 2.552626813e-11 | T70: 5.428102918e-12 | V70: -65.6680152 | W70: -75.93012673 | X70: -82.65351927 | Z70: -75.93012673 | AD70: -124 | AE70: =IF('LOS Range'!$H$18>index+$H$25,'LOS Range'!$H$22,AD70+'LOS Range'!$H$26) -> -108 | AJ70: CC2541/CC2543/CC2545 - 1 Mbpd (BLE) | AK70: -94 | AL70: 49 | AO70: 32.06987327 | AP70: 212.6926826 | AT70: 42.3319848 | AU70: 212.6926826
B71: 52 | C71: 216.8631274 | D71: 0.009348942601 | E71: 216.8631291 | F71: 216.8726049 | G71: 0.009475815981 | I71: -0.9215739751 | J71: -0.9954754335 | L71: -0.985196472 | M71: -0.985196472 | O71: 2.60814748e-10 | P71: 2.403390804e-10 | Q71: 2.596119864e-10 | S71: 2.403353388e-11 | T71: 5.04593492e-12 | V71: -65.83667855 | W71: -76.19182366 | X71: -82.97058355 | Z71: -76.19182366 | AD71: -124 | AE71: =IF('LOS Range'!$H$18>index+$H$25,'LOS Range'!$H$22,AD71+'LOS Range'!$H$26) -> -108 | AJ71: CC2564 - BLE | AK71: -96 | AL71: 50 | AO71: 31.80817634 | AP71: 216.8631274 | AT71: 42.16332145 | AU71: 216.8631274
B72: 53 | C72: 221.0335721 | D72: 0.009172557446 | E72: 221.0335738 | F72: 221.0428709 | G72: 0.009297034595 | I72: -0.9229966111 | J72: -0.9955606055 | L72: -0.9857484843 | M72: -0.9857484843 | O72: 2.510655319e-10 | P72: 2.317131422e-10 | Q72: 2.499299276e-10 | S72: 2.265465317e-11 | T72: 4.697484599e-12 | V72: -66.00212906 | W72: -76.44842582 | X72: -83.28134635 | Z72: -76.44842582 | AD72: -124 | AE72: =IF('LOS Range'!$H$18>index+$H$25,'LOS Range'!$H$22,AD72+'LOS Range'!$H$26) -> -108 | AJ72: CC2564 - BR | AK72: -95 | AL72: 50 | AO72: 31.55157418 | AP72: 221.0335721 | AT72: 41.99787094 | AU72: 221.0335721
B73: 54 | C73: 225.2040169 | D73: 0.009002704536 | E73: 225.2040186 | F73: 225.2131434 | G73: 0.009124874331 | I73: -0.9243685561 | J73: -0.9956426303 | L73: -0.9862702097 | M73: -0.9862702097 | O73: 2.418529079e-10 | P73: 2.235431077e-10 | Q73: 2.40779553e-10 | S73: 2.137900016e-11 | T73: 4.379207641e-12 | V73: -66.16448687 | W73: -76.7001261 | X73: -83.58604462 | Z73: -76.7001261 | AD73: -124 | AE73: =IF('LOS Range'!$H$18>index+$H$25,'LOS Range'!$H$22,AD73+'LOS Range'!$H$26) -> -108 | AJ73: CC2564 - EDR2 | AK73: -94.5 | AL73: 50 | AO73: 31.2998739 | AP73: 225.2040169 | AT73: 41.83551313 | AU73: 225.2040169
B74: 55 | C74: 229.3744616 | D74: 0.008839027603 | E74: 229.3744633 | F74: 229.3834223 | G74: 0.008958974068 | I74: -0.9256924719 | J74: -0.9957216791 | L74: -0.9867638224 | M74: -0.9867638224 | O74: 2.331382082e-10 | P74: 2.157974266e-10 | Q74: 2.321226351e-10 | S74: 2.01971147e-11 | T74: 4.08798947e-12 | V74: -66.32386546 | W74: -76.94710668 | X74: -83.88490232 | Z74: -76.94710668 | AD74: -124 | AE74: =IF('LOS Range'!$H$18>index+$H$25,'LOS Range'!$H$22,AD74+'LOS Range'!$H$26) -> -108 | AJ74: CC2564 - EDR3 | AK74: -87.5 | AL74: 50 | AO74: 31.05289332 | AP74: 229.3744616 | AT74: 41.67613454 | AU74: 229.3744616
B75: 56 | C75: 233.5449064 | D75: 0.008681195827 | E75: 233.544908 | F75: 233.553707 | G75: 0.008798998472 | I75: -0.9269708372 | J75: -0.9957979111 | L75: -0.987231305 | M75: -0.987231305 | O75: 2.248861863e-10 | P75: 2.084472292e-10 | Q75: 2.239243211e-10 | S75: 1.910055613e-11 | T75: 3.821086492e-12 | V75: -66.4803722 | W75: -77.18953988 | X75: -84.17813132 | Z75: -77.18953988 | AD75: -124 | AE75: =IF('LOS Range'!$H$18>index+$H$25,'LOS Range'!$H$22,AD75+'LOS Range'!$H$26) -> -108 | AJ75: CC2564MODN - BR | AK75: -93 | AL75: 50 | AO75: 30.81046012 | AP75: 233.5449064 | AT75: 41.5196278 | AU75: 233.5449064
B76: 57 | C76: 237.7153512 | D76: 0.008528901597 | E76: 237.7153527 | F76: 237.7239974 | G76: 0.008644635743 | I76: -0.9282059629 | J76: -0.995871474 | L76: -0.9876744687 | M76: -0.9876744687 | O76: 2.1706466e-10 | P76: 2.014660587e-10 | Q76: 2.161527817e-10 | S76: 1.808177757e-11 | T76: 3.576076256e-12 | V76: -66.63410878 | W76: -77.42758877 | X76: -84.46593229 | Z76: -77.42758877 | AD76: -124 | AE76: =IF('LOS Range'!$H$18>index+$H$25,'LOS Range'!$H$22,AD76+'LOS Range'!$H$26) -> -108 | AJ76: CC2564MODN - EDR2 | AK76: -92.5 | AL76: 50 | AO76: 30.57241123 | AP76: 237.7153512 | AT76: 41.36589122 | AU76: 237.7153512
B77: 58 | C77: 241.8857959 | D77: 0.008381858517 | E77: 241.8857975 | F77: 241.8942931 | G77: 0.008495595582 | I77: -0.9294000062 | J77: -0.9959425058 | L77: -0.9880949702 | M77: -0.9880949702 | O77: 2.096441976e-10 | P77: 1.948296326e-10 | Q77: 2.087789016e-10 | S77: 1.713401763e-11 | T77: 3.350815031e-12 | V77: -66.78517153 | W77: -77.66140791 | X77: -84.74849545 | Z77: -77.66140791 | AD77: -124 | AE77: =IF('LOS Range'!$H$18>index+$H$25,'LOS Range'!$H$22,AD77+'LOS Range'!$H$26) -> -108 | AJ77: CC2564MODN - EDR3 | AK77: -85.5 | AL77: 50 | AO77: 30.33859209 | AP77: 241.8857959 | AT77: 41.21482847 | AU77: 241.8857959
B78: 59 | C78: 246.0562407 | D78: 0.008239799604 | E78: 246.0562422 | F78: 246.0645938 | G78: 0.008351607368 | I78: -0.9305549832 | J78: -0.9960111347 | L78: -0.9884943279 | M78: -0.9884943279 | O78: 2.0259784e-10 | P78: 1.885156322e-10 | Q78: 2.01776007e-10 | S78: 1.625120683e-11 | T78: 3.14340161e-12 | V78: -66.93365189 | W78: -77.89114382 | X78: -85.02600129 | Z78: -77.89114382 | AD78: -124 | AE78: =IF('LOS Range'!$H$18>index+$H$25,'LOS Range'!$H$22,AD78+'LOS Range'!$H$26) -> -108 | AJ78: CC26xx - 1 Mbps (BLE) | AK78: -97 | AL78: 35 | AO78: 30.10885618 | AP78: 246.0562407 | AT78: 41.06634811 | AU78: 246.0562407
B79: 60 | C79: 250.2266854 | D79: 0.008102475672 | E79: 250.2266869 | F79: 250.2348994 | G79: 0.00821241852 | I79: -0.9316727802 | J79: -0.9960774808 | L79: -0.9888739349 | M79: -0.9888739349 | O79: 1.959008559e-10 | P79: 1.825035154e-10 | Q79: 1.951196232e-10 | S79: 1.542788653e-11 | T79: 2.952146328e-12 | V79: -67.07963666 | W79: -78.11693564 | X79: -85.2986212 | Z79: -78.11693564 | AD79: -124 | AE79: =IF('LOS Range'!$H$18>index+$H$25,'LOS Range'!$H$22,AD79+'LOS Range'!$H$26) -> -108 | AJ79: CC26xx - 2 Mbps (GFSK, Bluetooth 5) | AK79: -92 | AL79: 35 | AO79: 29.88306436 | AP79: 250.2266854 | AT79: 40.92036334 | AU79: 250.2266854
B80: 61 | C80: 254.3971302 | D80: 0.007969653874 | E80: 254.3971317 | F80: 254.4052095 | G80: 0.00807779302 | I80: -0.9327551641 | J80: -0.996141656 | L80: -0.9892350718 | M80: -0.9892350718 | O80: 1.895305245e-10 | P80: 1.767743492e-10 | Q80: 1.887872613e-10 | S80: 1.465913849e-11 | T80: 2.775544469e-12 | V80: -67.22320836 | W80: -78.33891552 | X80: -85.5665181 | Z80: -78.33891552 | AD80: -124 | AE80: =IF('LOS Range'!$H$18>index+$H$25,'LOS Range'!$H$22,AD80+'LOS Range'!$H$26) -> -108 | AJ80: CC26xx - 5 Mbps (Proprietary) | AK80: -81 | AL80: 35 | AO80: 29.66108448 | AP80: 254.3971302 | AT80: 40.77679164 | AU80: 254.3971302
B81: 62 | C81: 258.5675749 | D81: 0.007841116381 | E81: 258.5675764 | F81: 258.5755239 | G81: 0.007947510075 | I81: -0.9338037914 | J81: -0.9962037651 | L81: -0.989578917 | M81: -0.989578917 | O81: 1.834659422e-10 | P81: 1.713106612e-10 | Q81: 1.827582275e-10 | S81: 1.394052361e-11 | T81: 2.612253396e-12 | V81: -67.36444544 | W81: -78.55720914 | X81: -85.82984697 | Z81: -78.55720914 | AD81: -124 | AE81: =IF('LOS Range'!$H$18>index+$H$25,'LOS Range'!$H$22,AD81+'LOS Range'!$H$26) -> -108 | AJ81: CC26xx - 802.15.4 | AK81: -100 | AL81: 63 | AO81: 29.44279086 | AP81: 258.5675749 | AT81: 40.63555456 | AU81: 258.5675749
B82: 63 | C82: 262.7380197 | D82: 0.007716659197 | E82: 262.7380211 | F82: 262.7458425 | G82: 0.007821362908 | I82: -0.9348202169 | J82: -0.9962639064 | L82: -0.9899065564 | M82: -0.9899065564 | O82: 1.776878514e-10 | P82: 1.660963067e-10 | Q82: 1.770134539e-10 | S82: 1.326802838e-11 | T82: 2.461072814e-12 | V82: -67.50342264 | W82: -78.77193608 | X82: -86.08875537 | Z82: -78.77193608 | AD82: -124 | AE82: =IF('LOS Range'!$H$18>index+$H$25,'LOS Range'!$H$22,AD82+'LOS Range'!$H$26) -> -108 | AJ82: CC3xxx - 1 Mbps (DSSS) | AK82: -96 | AL82: 50 | AO82: 29.22806392 | AP82: 262.7380197 | AT82: 40.49657736 | AU82: 262.7380197
B83: 64 | C83: 266.9084645 | D83: 0.007596091072 | E83: 266.9084659 | F83: 266.916165 | G83: 0.007699157667 | I83: -0.9358059016 | J83: -0.996322172 | L83: -0.9902189921 | M83: -0.9902189921 | O83: 1.721784869e-10 | P83: 1.61116349e-10 | Q83: 1.715353478e-10 | S83: 1.263801816e-11 | T83: 2.320927707e-12 | V83: -67.64021113 | W83: -78.98321025 | X83: -86.34338387 | Z83: =IF(pol="Horizontal",X83,W83) -> -78.98321025 | AD83: -124 | AE83: =IF('LOS Range'!$H$18>index+$H$25,'LOS Range'!$H$22,AD83+'LOS Range'!$H$26) -> -108 | AJ83: CC3xxx - 2 Mbps (DSSS) | AK83: -94 | AL83: 50 | AO83: =ABS(AE83-Z83) -> 29.01678975 | AP83: 266.9084645 | AT83: 40.35978887 | AU83: 266.9084645
B84: 65 | C84: =D/10000*B84 -> 271.0789092 | D84: 0.007479232524 | E84: 271.0789106 | F84: 271.0864913 | G84: 0.007580712427 | I84: -0.9367622192 | J84: -0.9963786481 | L84: -0.9905171499 | M84: -0.9905171499 | O84: 1.669214397e-10 | P84: 1.563569531e-10 | Q84: 1.663076567e-10 | S84: 1.204719611e-11 | T84: 2.19085355e-12 | V84: -67.77487878 | W84: -79.1911402 | X84: -86.59386652 | Z84: -79.1911402 | AD84: =$AD$19 -> -124 | AE84: =IF('LOS Range'!$H$18>index+$H$25,'LOS Range'!$H$22,AD84+'LOS Range'!$H$26) -> -108 | AJ84: CC3xxx - 11 Mbps (CCK) | AK84: -88 | AL84: 50 | AO84: 28.8088598 | AP84: =D/10000*B84 -> 271.0789092 | AT84: =ABS(AE84-V84) -> 40.22512122 | AU84: =D/10000*B84 -> 271.0789092
B85: 66 | C85: 275.249354 | D85: 0.00736591495 | E85: 275.2493553 | F85: 275.2568212 | G85: 0.007465856288 | I85: -0.9376904628 | J85: -0.9964334161 | L85: -0.9908018863 | M85: -0.9908018863 | O85: 1.619015342e-10 | P85: 1.518052893e-10 | Q85: 1.613153476e-10 | S85: 1.149256722e-11 | T85: 2.069983461e-12 | V85: -67.90749036 | W85: -79.39582948 | X85: -86.84033125 | Z85: -79.39582948 | AD85: -124 | AE85: =IF('LOS Range'!$H$18>index+$H$25,'LOS Range'!$H$22,AD85+'LOS Range'!$H$26) -> -108 | AJ85: CC3xxx - 6 Mbps (OFDM) | AK85: -90 | AL85: 50 | AO85: 28.60417052 | AP85: 275.249354 | AT85: 40.09250964 | AU85: 275.249354
B86: =B85+1 -> 67 | C86: 279.4197987 | D86: =ATAN((H_1+H_3)/C86) -> 0.007255979809 | E86: =SQRT(ABS(H_1-H_3)^2+C86^2) -> 279.4198001 | F86: =SQRT(C86^2+(H_1+H_3)^2) -> 279.4271545 | G86: =F86-E86 -> 0.007354428554 | I86: =(er*SIN(D86)-SQRT(er-COS(D86)^2))/(er*SIN(D86)+SQRT(er-COS(D86)^2)) -> -0.9385918506 | J86: =(SIN(D86)-SQRT(er-COS(D86)^2))/(SIN(D86)+SQRT(er-COS(D86)^2)) -> -0.9964865522 | L86: =COS(G86*2*PI()/lambda)*SIGN(I86) -> -0.9910739945 | M86: =COS(G86*2*PI()/lambda)*SIGN(J86) -> -0.9910739945 | O86: =Pt_w*Gt_m*Gr_m*lambda^2/((4*PI()*E86)^2) -> 1.571047189e-10 | P86: =Pt_w*Gt_m*Gr_m*lambda^2/((4*PI()*F86)^2)*ABS(I86) -> 1.474494469e-10 | Q86: =Pt_w*Gt_m*Gr_m*lambda^2/((4*PI()*F86)^2)*ABS(J86) -> 1.565444989e-10 | S86: =O86+L86*P86 -> 1.097140656e-11 | T86: =O86+M86*Q86 -> 1.957537012e-12 | V86: =10*LOG10(O86*1000) -> -68.0381077 | W86: =10*LOG10(S86*1000) -> -79.59737691 | X86: =10*LOG10(T86*1000) -> -87.08290018 | Z86: -79.59737691 | AD86: -124 | AE86: =IF('LOS Range'!$H$18>index+$H$25,'LOS Range'!$H$22,AD86+'LOS Range'!$H$26) -> -108 | AJ86: CC3xxx - 18 Mbps (OFDM) | AK86: -86 | AL86: 50 | AO86: 28.40262309 | AP86: 279.4197987 | AT86: 39.9618923 | AU86: 279.4197987
B87: 68 | C87: 283.5902435 | D87: 0.007149277886 | E87: 283.5902448 | F87: 283.5974911 | G87: 0.007246277978 | I87: -0.9394675317 | J87: -0.9965381283 | L87: -0.99133421 | M87: -0.99133421 | O87: 1.525179678e-10 | P87: 1.432783566e-10 | Q87: 1.519822032e-10 | S87: 1.048123137e-11 | T87: 1.85281047e-12 | V87: -68.1667899 | W87: -79.79587692 | X87: -87.32169004 | Z87: -79.79587692 | AD87: -124 | AE87: =IF('LOS Range'!$H$18>index+$H$25,'LOS Range'!$H$22,AD87+'LOS Range'!$H$26) -> -108 | AJ87: CC3xxx - 36 Mbps (OFDM) | AK87: -81 | AL87: 50 | AO87: 28.20412308 | AP87: 283.5902435 | AT87: 39.8332101 | AU87: 283.5902435
B88: 69 | C88: 287.7606882 | D88: 0.007045668618 | E88: 287.7606896 | F88: 287.7678308 | G88: 0.007141262083 | I88: -0.94031859 | J88: -0.9965882121 | L88: -0.9915832156 | M88: -0.9915832156 | O88: 1.481291921e-10 | P88: 1.392817199e-10 | Q88: 1.476164799e-10 | S88: 1.001977635e-11 | T88: 1.755168262e-12 | V88: -68.29359346 | W88: -79.99141972 | X88: -87.55681243 | Z88: -79.99141972 | AD88: -124 | AE88: =IF('LOS Range'!$H$18>index+$H$25,'LOS Range'!$H$22,AD88+'LOS Range'!$H$26) -> -108 | AJ88: CC3xxx - 54 Mbps (OFDM) | AK88: -74 | AL88: 50 | AO88: 28.00858028 | AP88: 287.7606882 | AT88: 39.70640654 | AU88: 287.7606882
B89: 70 | C89: 291.931133 | D89: 0.006945019469 | E89: 291.9311343 | F89: 291.9381735 | G89: 0.007039246531 | I89: -0.9411460498 | J89: -0.9966368674 | L89: -0.9918216457 | M89: -0.9918216457 | O89: 1.439271599e-10 | P89: 1.354499458e-10 | Q89: 1.434361965e-10 | S89: 9.584971747e-12 | T89: 1.6640355e-12 | V89: -68.41857244 | W89: -80.18409163 | X89: -87.78837413 | Z89: -80.18409163 | AD89: -124 | AE89: =IF('LOS Range'!$H$18>index+$H$25,'LOS Range'!$H$22,AD89+'LOS Range'!$H$26) -> -108 | AO89: 27.81590837 | AP89: 291.931133 | AT89: 39.58142756 | AU89: 291.931133
B90: 71 | C90: 296.1015778 | D90: 0.006847205372 | E90: 296.101579 | F90: 296.1085191 | G90: 0.006940104555 | I90: -0.9419508792 | J90: -0.9966841546 | L90: -0.9920500906 | M90: -0.9920500906 | O90: 1.399014251e-10 | P90: 1.317740932e-10 | Q90: 1.394309975e-10 | S90: 9.174924013e-12 | T90: 1.578891411e-12 | V90: -68.54177862 | W90: -80.37397524 | X90: -88.01647738 | Z90: -80.37397524 | AD90: -124 | AE90: =IF('LOS Range'!$H$18>index+$H$25,'LOS Range'!$H$22,AD90+'LOS Range'!$H$26) -> -108 | AO90: 27.62602476 | AP90: 296.1015778 | AT90: 39.45822138 | AU90: 296.1015778
B91: 72 | C91: 300.2720225 | D91: 0.006752108209 | E91: 300.2720238 | F91: 300.2788675 | G91: 0.006843716427 | I91: -0.9427339939 | J91: -0.9967301305 | L91: -0.9922690999 | M91: -0.9922690999 | O91: 1.360422616e-10 | P91: 1.282458186e-10 | Q91: 1.355912403e-10 | S91: 8.787898553e-12 | T91: 1.49926357e-12 | V91: -68.66326157 | W91: -80.56114965 | X91: -88.24122012 | Z91: -80.56114965 | AD91: -124 | AE91: =IF('LOS Range'!$H$18>index+$H$25,'LOS Range'!$H$22,AD91+'LOS Range'!$H$26) -> -108 | AO91: 27.43885035 | AP91: 300.2720225 | AT91: 39.33673843 | AU91: 300.2720225
B92: 73 | C92: 304.4424673 | D92: 0.006659616329 | E92: 304.4424685 | F92: 304.4492185 | G92: 0.006749968981 | I92: -0.9434962611 | J92: -0.9967748489 | L92: -0.9924791859 | M92: -0.9924791859 | O92: 1.32340605e-10 | P92: 1.248573294e-10 | Q92: 1.319079373e-10 | S92: 8.422304392e-12 | T92: 1.424722807e-12 | V92: -68.78306884 | W92: -80.74569067 | X92: -88.46269623 | Z92: -80.74569067 | AD92: -124 | AE92: =IF('LOS Range'!$H$18>index+$H$25,'LOS Range'!$H$22,AD92+'LOS Range'!$H$26) -> -108 | AO92: 27.25430933 | AP92: 304.4424673 | AT92: 39.21693116 | AU92: 304.4424673
B93: 74 | C93: 308.612912 | D93: 0.006569624121 | E93: 308.6129133 | F93: 308.619572 | G93: 0.006658755166 | I93: -0.9442385022 | J93: -0.9968183607 | L93: -0.9926808267 | M93: -0.9926808267 | O93: 1.287879993e-10 | P93: 1.216013401e-10 | Q93: 1.283727027e-10 | S93: 8.076680514e-12 | T93: 1.354878722e-12 | V93: -68.90124603 | W93: -80.92767096 | X93: -88.68099578 | Z93: -80.92767096 | AD93: -124 | AE93: =IF('LOS Range'!$H$18>index+$H$25,'LOS Range'!$H$22,AD93+'LOS Range'!$H$26) -> -108 | AO93: 27.07232904 | AP93: 308.612912 | AT93: 39.09875397 | AU93: 308.612912
B94: 75 | C94: 312.7833568 | D94: 0.006482031603 | E94: 312.783358 | F94: 312.789928 | G94: 0.006569973642 | I94: -0.9449614963 | J94: -0.996860714 | L94: -0.9928744688 | M94: -0.9928744688 | O94: 1.253765483e-10 | P94: 1.184710337e-10 | Q94: 1.249777052e-10 | S94: 7.749683657e-12 | T94: 1.289375708e-12 | V94: -69.01783691 | W94: -81.10716025 | X94: -88.89620516 | Z94: -81.10716025 | AD94: -124 | AE94: =IF('LOS Range'!$H$18>index+$H$25,'LOS Range'!$H$22,AD94+'LOS Range'!$H$26) -> -108 | AO94: 26.89283975 | AP94: 312.7833568 | AT94: 38.98216309 | AU94: 312.7833568
B95: 76 | C95: 316.9538015 | D95: 0.006396744056 | E95: 316.9538027 | F95: 316.9602863 | G95: 0.006483528401 | I95: -0.9456659823 | J95: -0.9969019546 | L95: -0.9930605296 | M95: -0.9930605296 | O95: 1.22098872e-10 | P95: 1.15460026e-10 | Q95: 1.217156245e-10 | S95: 7.440077398e-12 | T95: 1.227889436e-12 | V95: -69.13288348 | W95: -81.28422547 | X95: -89.10840737 | Z95: -81.28422547 | AD95: -124 | AE95: =IF('LOS Range'!$H$18>index+$H$25,'LOS Range'!$H$22,AD95+'LOS Range'!$H$26) -> -108 | AO95: 26.71577453 | AP95: 316.9538015 | AT95: 38.86711652 | AU95: 316.9538015
B96: 77 | C96: 321.1242463 | D96: 0.00631367168 | E96: 321.1242475 | F96: 321.1306468 | G96: 0.006399328423 | I96: -0.9463526619 | J96: -0.9969421258 | L96: -0.9932393995 | M96: -0.9932393995 | O96: 1.189480662e-10 | P96: 1.125623328e-10 | Q96: 1.185796119e-10 | S96: 7.146722384e-12 | T96: 1.170123733e-12 | V96: -69.24642614 | W96: -81.45893088 | X96: -89.31768212 | Z96: -81.45893088 | AD96: -124 | AE96: =IF('LOS Range'!$H$18>index+$H$25,'LOS Range'!$H$22,AD96+'LOS Range'!$H$26) -> -108 | AO96: 26.54106912 | AP96: 321.1242463 | AT96: 38.75357386 | AU96: 321.1242463
B97: 78 | C97: 325.2946911 | D97: 0.006232729281 | E97: 325.2946922 | F97: 325.3010095 | G97: 0.006317287355 | I97: -0.9470222019 | J97: -0.9969812685 | L97: -0.9934114443 | M97: -0.9934114443 | O97: 1.159176668e-10 | P97: 1.097723404e-10 | Q97: 1.155632539e-10 | S97: 6.868567566e-12 | T97: 1.115807809e-12 | V97: -69.35850369 | W97: -81.63133825 | X97: -89.52410603 | Z97: -81.63133825 | AD97: -124 | AE97: =IF('LOS Range'!$H$18>index+$H$25,'LOS Range'!$H$22,AD97+'LOS Range'!$H$26) -> -108 | AO97: 26.36866175 | AP97: 325.2946911 | AT97: 38.64149631 | AU97: 325.2946911
B98: 79 | C98: 329.4651358 | D98: 0.006153835978 | E98: 329.465137 | F98: 329.4713743 | G98: 0.006237323217 | I98: -0.947675236 | J98: -0.9970194218 | L98: -0.9935770067 | M98: -0.9935770067 | O98: 1.130016159e-10 | P98: 1.070847784e-10 | Q98: 1.1266054e-10 | S98: 6.604642325e-12 | T98: 1.064693786e-12 | V98: -69.46915346 | W98: -81.80150697 | X98: -89.72775281 | Z98: -81.80150697 | AD98: -124 | AE98: =IF('LOS Range'!$H$18>index+$H$25,'LOS Range'!$H$22,AD98+'LOS Range'!$H$26) -> -108 | AO98: 26.19849303 | AP98: 329.4651358 | AT98: 38.53084654 | AU98: 329.4651358
B99: 80 | C99: 333.6355806 | D99: 0.006076914934 | E99: 333.6355817 | F99: 333.6417411 | G99: 0.006159358126 | I99: -0.948312367 | J99: -0.9970566227 | L99: -0.9937364082 | M99: -0.9937364082 | O99: 1.10194232e-10 | P99: 1.044946948e-10 | Q99: 1.098658323e-10 | S99: 6.354049389e-12 | T99: 1.016554497e-12 | V99: -69.57841137 | W99: -81.96949414 | X99: -89.92869334 | Z99: -81.96949414 | AD99: -124 | AE99: =IF('LOS Range'!$H$18>index+$H$25,'LOS Range'!$H$22,AD99+'LOS Range'!$H$26) -> -108 | AO99: 26.03050586 | AP99: 333.6355806 | AT99: 38.42158863 | AU99: 333.6355806
B100: 81 | C100: 337.8060253 | D100: 0.006001893106 | E100: 337.8060264 | F100: 337.8121098 | G100: 0.006083318046 | I100: -0.9489341691 | J100: -0.9970929065 | L100: -0.9938899507 | M100: -0.9938899507 | O100: 1.074901822e-10 | P100: 1.019974331e-10 | Q100: 1.071738381e-10 | S100: 6.115958455e-12 | T100: 9.711815216e-13 | V100: -69.68631201 | W100: -82.13535473 | X100: -90.12699589 | Z100: -82.13535473 | AD100: -124 | AE100: =IF('LOS Range'!$H$18>index+$H$25,'LOS Range'!$H$22,AD100+'LOS Range'!$H$26) -> -108 | AO100: 25.86464527 | AP100: 337.8060253 | AT100: 38.31368799 | AU100: 337.8060253
B101: 82 | C101: 341.9764701 | D101: 0.005928701013 | E101: 341.9764712 | F101: 341.9824803 | G101: 0.006009132552 | I101: -0.9495411887 | J101: -0.9971283066 | L101: -0.9940379176 | M101: -0.9940379176 | O101: 1.048844565e-10 | P101: 9.958861155e-11 | Q101: 1.045795851e-10 | S101: 5.889600437e-12 | T101: 9.283834291e-13 | V101: -69.79288868 | W101: -82.29914168 | X101: -90.3227262 | Z101: -82.29914168 | AD101: -124 | AE101: =IF('LOS Range'!$H$18>index+$H$25,'LOS Range'!$H$22,AD101+'LOS Range'!$H$26) -> -108 | AO101: 25.70085832 | AP101: 341.9764701 | AT101: 38.20711132 | AU101: 341.9764701
B102: 83 | C102: 346.1469148 | D102: 0.005857272524 | E102: 346.1469159 | F102: 346.1528527 | G102: 0.005936734615 | I102: -0.9501339468 | J102: -0.997162855 | L102: -0.9941805757 | M102: -0.9941805757 | O102: 1.023723451e-10 | P102: 9.726410393e-11 | Q102: 1.020783984e-10 | S102: 5.674262268e-12 | T102: 8.879842041e-13 | V102: -69.89817348 | W102: -82.46090595 | X102: -90.5159476 | Z102: -82.46090595 | AD102: -124 | AE102: =IF('LOS Range'!$H$18>index+$H$25,'LOS Range'!$H$22,AD102+'LOS Range'!$H$26) -> -108 | AO102: 25.53909405 | AP102: 346.1469148 | AT102: 38.10182652 | AU102: 346.1469148
B103: 84 | C103: 350.3173596 | D103: 0.005787544656 | E103: 350.3173607 | F103: 350.3232267 | G103: 0.005866060394 | I103: -0.9507129401 | J103: -0.997196582 | L103: -0.9943181758 | M103: -0.9943181758 | O103: 9.994941689e-11 | P103: 9.502002175e-11 | Q103: 9.966587906e-11 | S103: 5.469282202e-12 | T103: 8.498218361e-13 | V103: -70.00219735 | W103: -82.62069667 | X103: -90.70672114 | Z103: -82.62069667 | AD103: -124 | AE103: =IF('LOS Range'!$H$18>index+$H$25,'LOS Range'!$H$22,AD103+'LOS Range'!$H$26) -> -108 | AO103: 25.37930333 | AP103: 350.3173596 | AT103: 37.99780265 | AU103: 350.3173596
B104: 85 | C104: 354.4878044 | D104: 0.005719457389 | E104: 354.4878054 | F104: 354.4936025 | G104: 0.005797049054 | I104: -0.9512786427 | J104: -0.9972295166 | L104: -0.9944509541 | M104: -0.9944509541 | O104: 9.761149975e-11 | P104: 9.285269807e-11 | Q104: 9.733788508e-11 | S104: 5.274045562e-12 | T104: 8.137470533e-13 | V104: -70.10499014 | W104: -82.77856123 | X104: -90.89510571 | Z104: -82.77856123 | AD104: -124 | AE104: =IF('LOS Range'!$H$18>index+$H$25,'LOS Range'!$H$22,AD104+'LOS Range'!$H$26) -> -108 | AO104: 25.22143877 | AP104: 354.4878044 | AT104: 37.89500986 | AU104: 354.4878044
B105: 86 | C105: 358.6582491 | D105: 0.005652953496 | E105: 358.6582502 | F105: 358.6639798 | G105: 0.00572964259 | I105: -0.9518315069 | J105: -0.9972616863 | L105: -0.9945791333 | M105: -0.9945791333 | O105: 9.535466276e-11 | P105: 9.075867254e-11 | Q105: 9.509051357e-11 | S105: 5.08798088e-12 | T105: 7.796221838e-13 | V105: -70.20658065 | W105: -82.93454529 | X105: -91.08115812 | Z105: -82.93454529 | AD105: -124 | AE105: =IF('LOS Range'!$H$18>index+$H$25,'LOS Range'!$H$22,AD105+'LOS Range'!$H$26) -> -108 | AO105: 25.06545471 | AP105: 358.6582491 | AT105: 37.79341935 | AU105: 358.6582491
B106: 87 | C106: 362.8286939 | D106: 0.005587978379 | E106: 362.8286949 | F106: 362.8343587 | G106: 0.005663785664 | I106: -0.9523719649 | J106: -0.9972931175 | L106: -0.9947029233 | M106: -0.9947029233 | O106: 9.317519961e-11 | P106: 8.87346776e-11 | Q106: 9.292008429e-11 | S106: 4.910556404e-12 | T106: 7.473201306e-13 | V106: -70.30699668 | W106: -83.08869296 | X106: -91.26493319 | Z106: -83.08869296 | AD106: -124 | AE106: =IF('LOS Range'!$H$18>index+$H$25,'LOS Range'!$H$22,AD106+'LOS Range'!$H$26) -> -108 | AO106: 24.91130704 | AP106: 362.8286939 | AT106: 37.69300332 | AU106: 362.8286939
B107: 88 | C107: 366.9991386 | D107: 0.005524479924 | E107: 366.9991397 | F107: 367.0047391 | G107: 0.005599425451 | I107: -0.9529004296 | J107: -0.9973238354 | L107: -0.9948225222 | M107: -0.9948225222 | O107: 9.106961337e-11 | P107: 8.677762569e-11 | Q107: 9.082312464e-11 | S107: 4.74127691e-12 | T107: 7.16723448e-13 | V107: -70.40626507 | W107: -83.24104679 | X107: -91.44648387 | Z107: -83.24104679 | AD107: -124 | AE107: =IF('LOS Range'!$H$18>index+$H$25,'LOS Range'!$H$22,AD107+'LOS Range'!$H$26) -> -108 | AO107: 24.75895321 | AP107: 366.9991386 | AT107: 37.59373493 | AU107: 366.9991386
B108: 89 | C108: 371.1695834 | D108: 0.005462408358 | E108: 371.1695844 | F108: 371.1751209 | G108: 0.005536511503 | I108: -0.9534172958 | J108: -0.9973538639 | L108: -0.9949381169 | M108: -0.9949381169 | O108: 8.903460245e-11 | P108: 8.488459754e-11 | Q108: 8.879635572e-11 | S108: 4.579680818e-12 | T108: 6.877235077e-13 | V108: -70.50441176 | W108: -83.39164789 | X108: -91.6258613 | Z108: -83.39164789 | AD108: -124 | AE108: =IF('LOS Range'!$H$18>index+$H$25,'LOS Range'!$H$22,AD108+'LOS Range'!$H$26) -> -108 | AO108: 24.60835211 | AP108: 371.1695834 | AT108: 37.49558824 | AU108: 371.1695834
B109: 90 | C109: 375.3400281 | D109: 0.005401716119 | E109: 375.3400292 | F109: 375.3455041 | G109: 0.005474995611 | I109: -0.9539229413 | J109: -0.997383226 | L109: -0.9950498843 | M109: -0.9950498843 | O109: 8.706704767e-11 | P109: 8.305283124e-11 | Q109: 8.683667954e-11 | S109: 4.425337553e-12 | T109: 6.602197461e-13 | V109: -70.60146182 | W109: -83.54053597 | X109: -91.80311491 | Z109: -83.54053597 | AD109: -124 | AE109: =IF('LOS Range'!$H$18>index+$H$25,'LOS Range'!$H$22,AD109+'LOS Range'!$H$26) -> -108 | AO109: 24.45946403 | AP109: 375.3400281 | AT109: 37.39853818 | AU109: 375.3400281
B110: 91 | C110: 379.5104729 | D110: 0.005342357737 | E110: 379.5104739 | F110: 379.5158887 | G110: 0.005414831688 | I110: -0.9544177275 | J110: -0.9974119437 | L110: -0.9951579913 | M110: -0.9951579913 | O110: 8.516400027e-11 | P110: 8.127971219e-11 | Q110: 8.494116715e-11 | S110: 4.277845145e-12 | T110: 6.341189826e-13 | V110: -70.69743947 | W110: -83.68774941 | X110: -91.97829246 | Z110: -83.68774941 | AD110: -124 | AE110: =IF('LOS Range'!$H$18>index+$H$25,'LOS Range'!$H$22,AD110+'LOS Range'!$H$26) -> -108 | AO110: 24.31225059 | AP110: 379.5104729 | AT110: 37.30256053 | AU110: 379.5104729
B111: 92 | C111: 383.6809177 | D111: 0.005284289718 | E111: 383.6809186 | F111: 383.6862746 | G111: 0.005355975648 | I111: -0.9549020005 | J111: -0.9974400379 | L111: -0.9952625961 | M111: -0.9952625961 | O111: 8.332267087e-11 | P111: 7.956276378e-11 | Q111: 8.310704772e-11 | S111: 4.136828041e-12 | T111: 6.093348033e-13 | V111: -70.79236817 | W111: -83.83332531 | X111: -92.15144016 | Z111: -83.83332531 | AD111: -124 | AE111: =IF('LOS Range'!$H$18>index+$H$25,'LOS Range'!$H$22,AD111+'LOS Range'!$H$26) -> -108 | AO111: 24.16667469 | AP111: 383.6809177 | AT111: 37.20763183 | AU111: 383.6809177
B112: 93 | C112: 387.8513624 | D112: 0.005227470439 | E112: 387.8513634 | F112: 387.8566618 | G112: 0.005298385303 | I112: -0.9553760918 | J112: -0.9974675287 | L112: -0.9953638483 | M112: -0.9953638483 | O112: 8.154041928e-11 | P112: 7.789963873e-11 | Q112: 8.133169837e-11 | S112: 4.0019351e-12 | T112: 5.857870009e-13 | V112: -70.8862706 | W112: -83.97729959 | X112: -92.3226027 | Z112: -83.97729959 | AD112: -124 | AE112: =IF('LOS Range'!$H$18>index+$H$25,'LOS Range'!$H$22,AD112+'LOS Range'!$H$26) -> -108 | AO112: 24.02270041 | AP112: 387.8513624 | AT112: 37.1137294 | AU112: 387.8513624
B113: 94 | C113: 392.0218072 | D113: 0.005171860049 | E113: 392.0218081 | F113: 392.0270502 | G113: 0.00524202026 | I113: -0.9558403192 | J113: -0.9974944354 | L113: -0.9954618895 | M113: -0.9954618895 | O113: 7.981474496e-11 | P113: 7.628811107e-11 | Q113: 7.961263482e-11 | S113: 3.872837764e-12 | T113: 5.63401068e-13 | V113: -70.9791687 | W113: -84.11970695 | X113: -92.49182334 | Z113: -84.11970695 | AD113: -124 | AE113: =IF('LOS Range'!$H$18>index+$H$25,'LOS Range'!$H$22,AD113+'LOS Range'!$H$26) -> -108 | AO113: 23.88029305 | AP113: 392.0218072 | AT113: 37.0208313 | AU113: 392.0218072
B114: 95 | C114: 396.1922519 | D114: 0.005117420372 | E114: 396.1922529 | F114: 396.1974397 | G114: 0.005186841826 | I114: -0.9562949874 | J114: -0.9975207763 | L114: -0.9955568542 | M114: -0.9955568542 | O114: 7.814327828e-11 | P114: 7.472606872e-11 | Q114: 7.794750267e-11 | S114: 3.749228386e-12 | T114: 5.421077353e-13 | V114: -71.07108373 | W114: -84.26058104 | X114: -92.65914396 | Z114: -84.26058104 | AD114: -124 | AE114: =IF('LOS Range'!$H$18>index+$H$25,'LOS Range'!$H$22,AD114+'LOS Range'!$H$26) -> -108 | AO114: 23.73941896 | AP114: 396.1922519 | AT114: 36.92891627 | AU114: 396.1922519
B115: 96 | C115: 400.3626967 | D115: 0.005064114826 | E115: 400.3626976 | F115: 400.3678304 | G115: 0.00513281292 | I115: -0.9567403886 | J115: -0.9975465692 | L115: -0.9956488696 | M115: -0.9956488696 | O115: 7.652377241e-11 | P115: 7.321150654e-11 | Q115: 7.633406935e-11 | S115: 3.63081869e-12 | T115: 5.218425524e-13 | V115: -71.16203629 | W115: -84.39995438 | X115: -92.8246051 | Z115: -84.39995438 | AD115: -124 | AE115: =IF('LOS Range'!$H$18>index+$H$25,'LOS Range'!$H$22,AD115+'LOS Range'!$H$26) -> -108 | AO115: 23.60004562 | AP115: 400.3626967 | AT115: 36.83796371 | AU115: 400.3626967
B116: 97 | C116: 404.5331414 | D116: 0.005011908335 | E116: 404.5331424 | F116: 404.5382223 | G116: 0.005079897991 | I116: -0.9571768032 | J116: -0.9975718309 | L116: -0.9957380566 | M116: -0.9957380566 | O116: 7.495409572e-11 | P116: 7.174251992e-11 | Q116: 7.477021665e-11 | S116: 3.517338366e-12 | T116: 5.025455062e-13 | V116: -71.25204631 | W116: -84.53785851 | X116: -92.98824606 | Z116: -84.53785851 | AD116: -124 | AE116: =IF('LOS Range'!$H$18>index+$H$25,'LOS Range'!$H$22,AD116+'LOS Range'!$H$26) -> -108 | AO116: 23.46214149 | AP116: 404.5331414 | AT116: 36.74795369 | AU116: 404.5331414
B117: 98 | C117: 408.7035862 | D117: 0.004960767257 | E117: 408.7035871 | F117: 408.7086152 | G117: 0.005028062939 | I117: -0.9576045006 | J117: -0.9975965777 | L117: -0.9958245299 | M117: -0.9958245299 | O117: 7.343222477e-11 | P117: 7.031729877e-11 | Q117: 7.325393371e-11 | S117: 3.408533782e-12 | T117: 4.841606724e-13 | V117: -71.34113314 | W117: -84.67432397 | X117: -93.15010491 | Z117: -84.67432397 | AD117: -124 | AE117: =IF('LOS Range'!$H$18>index+$H$25,'LOS Range'!$H$22,AD117+'LOS Range'!$H$26) -> -108 | AO117: 23.32567603 | AP117: 408.7035862 | AT117: 36.65886686 | AU117: 408.7035862
B118: 99 | C118: 412.874031 | D118: 0.004910659307 | E118: 412.8740319 | F118: 412.8790091 | G118: 0.00497727504 | I118: -0.9580237393 | J118: -0.9976208252 | L118: -0.9959083985 | M118: -0.9959083985 | O118: 7.195623781e-11 | P118: 6.893412198e-11 | Q118: 7.178331061e-11 | S118: 3.30416679e-12 | T118: 4.666358986e-13 | V118: -71.42931552 | W118: -84.80938038 | X118: -93.31021854 | Z118: -84.80938038 | AD118: -124 | AE118: =IF('LOS Range'!$H$18>index+$H$25,'LOS Range'!$H$22,AD118+'LOS Range'!$H$26) -> -108 | AO118: 23.19061962 | AP118: 412.874031 | AT118: 36.57068448 | AU118: 412.874031
B119: 100 | C119: 417.0444757 | D119: 0.004861553491 | E119: 417.0444766 | F119: 417.0494041 | G119: 0.004927502881 | I119: -0.9584347678 | J119: -0.9976445884 | L119: -0.995989766 | M119: -0.995989766 | O119: 7.052430868e-11 | P119: 6.759135219e-11 | Q119: 7.035653233e-11 | S119: 3.204013639e-12 | T119: 4.49922514e-13 | V119: -71.51661162 | W119: -84.94305644 | X119: -93.46862274 | Z119: -84.94305644 | AD119: -124 | AE119: =IF('LOS Range'!$H$18>index+$H$25,'LOS Range'!$H$22,AD119+'LOS Range'!$H$26) -> -108 | AO119: 23.05694356 | AP119: 417.0444757 | AT119: 36.48338838 | AU119: 417.0444757
B120: 101 | C120: 421.2149205 | D120: 0.004813420045 | E120: 421.2149214 | F120: 421.2198001 | G120: 0.004878716291 | I120: -0.9588378249 | J120: -0.9976678815 | L120: -0.9960687307 | M120: -0.9960687307 | O120: 6.91347012e-11 | P120: 6.628743097e-11 | Q120: 6.897187314e-11 | S120: 3.107863971e-12 | T120: 4.339750646e-13 | V120: -71.6030391 | W120: -85.07537998 | X120: -93.62535223 | Z120: -85.07537998 | AD120: -124 | AE120: =IF('LOS Range'!$H$18>index+$H$25,'LOS Range'!$H$22,AD120+'LOS Range'!$H$26) -> -108 | AO120: 22.92462002 | AP120: 421.2149205 | AT120: 36.3969609 | AU120: 421.2149205
B121: 102 | C121: 425.3853652 | D121: 0.004766230371 | E121: 425.3853661 | F121: 425.390197 | G121: 0.004830886286 | I121: -0.9592331404 | J121: -0.9976907184 | L121: -0.9961453864 | M121: -0.9961453864 | O121: 6.778576384e-11 | P121: 6.502087429e-11 | Q121: 6.762769139e-11 | S121: 3.015519894e-12 | T121: 4.187510712e-13 | V121: -71.68861506 | W121: -85.20637802 | X121: -93.78044069 | Z121: -85.20637802 | AD121: -124 | AE121: =IF('LOS Range'!$H$18>index+$H$25,'LOS Range'!$H$22,AD121+'LOS Range'!$H$26) -> -108 | AO121: 22.79362198 | AP121: 425.3853652 | AT121: 36.31138494 | AU121: 425.3853652
B122: 103 | C122: 429.55581 | D122: 0.00471995698 | E122: 429.5558109 | F122: 429.5605949 | G122: 0.004783985002 | I122: -0.959620935 | J122: -0.9977131125 | L122: -0.9962198221 | M122: -0.9962198221 | O122: 6.647592488e-11 | P122: 6.379026831e-11 | Q122: 6.632242463e-11 | S122: 2.926795131e-12 | T122: 4.042108068e-13 | V122: -71.77335612 | W122: -85.33607676 | X122: -93.9339208 | Z122: -85.33607676 | AD122: -124 | AE122: =IF('LOS Range'!$H$18>index+$H$25,'LOS Range'!$H$22,AD122+'LOS Range'!$H$26) -> -108 | AO122: 22.66392324 | AP122: 429.55581 | AT122: 36.22664388 | AU122: 429.55581
B123: 104 | C123: 433.7262547 | D123: 0.004674573443 | E123: 433.7262556 | F123: 433.7309936 | G123: 0.004737985651 | I123: -0.9600014215 | J123: -0.9977350764 | L123: -0.9962921228 | M123: -0.9962921228 | O123: 6.520368778e-11 | P123: 6.25942654e-11 | Q123: 6.50545851e-11 | S123: 2.84151423e-12 | T123: 3.903170938e-13 | V123: -71.85727841 | W123: -85.46450165 | X123: -94.08582428 | Z123: -85.46450165 | AD123: -124 | AE123: =IF('LOS Range'!$H$18>index+$H$25,'LOS Range'!$H$22,AD123+'LOS Range'!$H$26) -> -108 | AO123: 22.53549835 | AP123: 433.7262547 | AT123: 36.14272159 | AU123: 433.7262547
B124: 105 | C124: 437.8966995 | D124: 0.004630054335 | E124: 437.8967004 | F124: 437.9013932 | G124: 0.004692862465 | I124: -0.9603748044 | J124: -0.9977566224 | L124: -0.9963623693 | M124: -0.9963623693 | O124: 6.396762695e-11 | P124: 6.143158051e-11 | Q124: 6.382275545e-11 | S124: 2.75951184e-12 | T124: 3.770351173e-13 | V124: -71.9403976 | W124: -85.59167738 | X124: -94.23618197 | Z124: -85.59167738 | AD124: -124 | AE124: =IF('LOS Range'!$H$18>index+$H$25,'LOS Range'!$H$22,AD124+'LOS Range'!$H$26) -> -108 | AO124: 22.40832262 | AP124: 437.8966995 | AT124: 36.0596024 | AU124: 437.8966995
B125: 106 | C125: 442.0671443 | D125: 0.004586375193 | E125: 442.0671451 | F125: 442.0717937 | G125: 0.004648590645 | I125: -0.9607412809 | J125: -0.9977777623 | L125: -0.9964306387 | M125: -0.9964306387 | O125: 6.276638369e-11 | P125: 6.030098766e-11 | Q125: 6.262558478e-11 | S125: 2.68063204e-12 | T125: 3.643322535e-13 | V125: -72.02272893 | W125: -85.71762796 | X125: -94.3850238 | Z125: -85.71762796 | AD125: -124 | AE125: =IF('LOS Range'!$H$18>index+$H$25,'LOS Range'!$H$22,AD125+'LOS Range'!$H$26) -> -108 | AO125: 22.28237204 | AP125: 442.0671443 | AT125: 35.97727107 | AU125: 442.0671443
B126: 107 | C126: 446.237589 | D126: 0.004543512466 | E126: 446.2375899 | F126: 446.242195 | G126: 0.004605146323 | I126: -0.9611010409 | J126: -0.9977985076 | L126: -0.9964970045 | M126: -0.9964970045 | O126: 6.159866252e-11 | P126: 5.920131675e-11 | Q126: 6.146178497e-11 | S126: 2.604727717e-12 | T126: 3.521779131e-13 | V126: -72.10428717 | W126: -85.84237669 | X126: -94.53237884 | Z126: -85.84237669 | AD126: -124 | AE126: =IF('LOS Range'!$H$18>index+$H$25,'LOS Range'!$H$22,AD126+'LOS Range'!$H$26) -> -108 | AO126: 22.15762331 | AP126: 446.237589 | AT126: 35.89571283 | AU126: 446.237589
B127: 108 | C127: 450.4080338 | D127: 0.004501443477 | E127: 450.4080346 | F127: 450.4125971 | G127: 0.004562506514 | I127: -0.9614542672 | J127: -0.9978188691 | L127: -0.9965615368 | M127: -0.9965615368 | O127: 6.046322765e-11 | P127: 5.813145051e-11 | Q127: 6.033012717e-11 | S127: 2.531659989e-12 | T127: 3.405433958e-13 | V127: -72.18508673 | W127: -85.96594622 | X127: -94.67827538 | Z127: -85.96594622 | AD127: -124 | AE127: =IF('LOS Range'!$H$18>index+$H$25,'LOS Range'!$H$22,AD127+'LOS Range'!$H$26) -> -108 | AO127: 22.03405378 | AP127: 450.4080338 | AT127: 35.81491327 | AU127: 450.4080338
B128: 109 | C128: 454.5784785 | D128: 0.004460146381 | E128: 454.5784794 | F128: 454.583 | G128: 0.004520649074 | I128: -0.9618011363 | J128: -0.9978388575 | L128: -0.9966243025 | M128: -0.9966243025 | O128: 5.93588997e-11 | P128: 5.709032168e-11 | Q128: 5.922943861e-11 | S128: 2.461297677e-12 | T128: 3.294017577e-13 | V128: -72.26514158 | W128: -86.08835858 | X128: -94.82274088 | Z128: -86.08835858 | AD128: -124 | AE128: =IF('LOS Range'!$H$18>index+$H$25,'LOS Range'!$H$22,AD128+'LOS Range'!$H$26) -> -108 | AO128: 21.91164142 | AP128: 454.5784785 | AT128: 35.73485842 | AU128: 454.5784785
B129: 110 | C129: 458.7489233 | D129: 0.004419600126 | E129: 458.7489241 | F129: 458.7534037 | G129: 0.004479552668 | I129: -0.9621418182 | J129: -0.9978584828 | L129: -0.9966853654 | M129: -0.9966853654 | O129: 5.828455268e-11 | P129: 5.607691033e-11 | Q129: 5.815859949e-11 | S129: 2.393516811e-12 | T129: 3.187276885e-13 | V129: -72.34446532 | W129: -86.20963518 | X129: -94.96580207 | Z129: -86.20963518 | AD129: -124 | AE129: =IF('LOS Range'!$H$18>index+$H$25,'LOS Range'!$H$22,AD129+'LOS Range'!$H$26) -> -108 | AO129: 21.79036482 | AP129: 458.7489233 | AT129: 35.65553468 | AU129: 458.7489233
B130: 111 | C130: 462.919368 | D130: 0.00437978442 | E130: 462.9193689 | F130: 462.9238081 | G130: 0.004439196726 | I130: -0.9624764771 | J130: -0.9978777548 | L130: -0.9967447867 | M130: -0.9967447867 | O130: 5.723911106e-11 | P130: 5.509024138e-11 | Q130: 5.711654019e-11 | S130: 2.328200168e-12 | T130: 3.084973982e-13 | V130: -72.4230712 | W130: -86.32979684 | X130: -95.10748494 | Z130: -86.32979684 | AD130: -124 | AE130: =IF('LOS Range'!$H$18>index+$H$25,'LOS Range'!$H$22,AD130+'LOS Range'!$H$26) -> -108 | AO130: 21.67020316 | AP130: 462.919368 | AT130: 35.5769288 | AU130: 462.919368
B131: 112 | C131: 467.0898128 | D131: 0.004340679695 | E131: 467.0898136 | F131: 467.0942132 | G131: 0.004399561416 | I131: -0.9628052713 | J131: -0.9978966832 | L131: -0.9968026246 | M131: -0.9968026246 | O131: 5.622154715e-11 | P131: 5.412938225e-11 | Q131: 5.610223855e-11 | S131: 2.265236853e-12 | T131: 2.986885133e-13 | V131: -72.50097207 | W131: -86.44886382 | X131: -95.24781479 | Z131: -86.44886382 | AD131: -124 | AE131: =IF('LOS Range'!$H$18>index+$H$25,'LOS Range'!$H$22,AD131+'LOS Range'!$H$26) -> -108 | AO131: 21.55113618 | AP131: 467.0898128 | AT131: 35.49902793 | AU131: 467.0898128
B132: 113 | C132: 471.2602576 | D132: 0.004302267077 | E132: 471.2602584 | F132: 471.264619 | G132: 0.004360627607 | I132: -0.9631283535 | J132: -0.9979152768 | L132: -0.9968589349 | M132: -0.9968589349 | O132: 5.523087849e-11 | P132: 5.319344065e-11 | Q132: 5.511471743e-11 | S132: 2.204521901e-12 | T132: 2.892799802e-13 | V132: -72.57818049 | W132: -86.56685582 | X132: -95.38681621 | Z132: -86.56685582 | AD132: -124 | AE132: =IF('LOS Range'!$H$18>index+$H$25,'LOS Range'!$H$22,AD132+'LOS Range'!$H$26) -> -108 | AO132: 21.43314418 | AP132: 471.2602576 | AT132: 35.42181951 | AU132: 471.2602576
B133: 114 | C133: 475.4307023 | D133: 0.004264528351 | E133: 475.4307031 | F133: 475.4350255 | G133: 0.004322376837 | I133: -0.9634458714 | J133: -0.9979335446 | L133: -0.9969137709 | M133: -0.9969137709 | O133: 5.426616555e-11 | P133: 5.228156252e-11 | Q133: 5.415304227e-11 | S133: 2.145955913e-12 | T133: 2.802519764e-13 | V133: -72.65470865 | W133: -86.68379204 | X133: -95.52451316 | Z133: -86.68379204 | AD133: -124 | AE133: =IF('LOS Range'!$H$18>index+$H$25,'LOS Range'!$H$22,AD133+'LOS Range'!$H$26) -> -108 | AO133: 21.31620796 | AP133: 475.4307023 | AT133: 35.34529135 | AU133: 475.4307023
B134: 115 | C134: 479.6011471 | D134: 0.00422744594 | E134: 479.6011479 | F134: 479.6054327 | G134: 0.004284791288 | I134: -0.9637579675 | J134: -0.997951495 | L134: -0.9969671835 | M134: -0.9969671835 | O134: 5.332650946e-11 | P134: 5.139293007e-11 | Q134: 5.321631896e-11 | S134: 2.089444712e-12 | T134: 2.715858283e-13 | V134: -72.73056843 | W134: -86.79969116 | X134: -95.66092896 | Z134: -86.79969116 | AD134: -124 | AE134: =IF('LOS Range'!$H$18>index+$H$25,'LOS Range'!$H$22,AD134+'LOS Range'!$H$26) -> -108 | AO134: 21.20030884 | AP134: 479.6011471 | AT134: 35.26943157 | AU134: 479.6011471
B135: 116 | C135: 483.7715918 | D135: 0.004191002869 | E135: 483.7715926 | F135: 483.7758405 | G135: 0.004247853758 | I135: -0.9640647795 | J135: -0.9979691363 | L135: -0.9970192218 | M135: -0.9970192218 | O135: 5.241104991e-11 | P135: 5.052675995e-11 | Q135: 5.230369168e-11 | S135: 2.034899029e-12 | T135: 2.632639351e-13 | V135: -72.8057714 | W135: -86.91457135 | X135: -95.79608631 | Z135: -86.91457135 | AD135: -124 | AE135: =IF('LOS Range'!$H$18>index+$H$25,'LOS Range'!$H$22,AD135+'LOS Range'!$H$26) -> -108 | AO135: 21.08542865 | AP135: 483.7715918 | AT135: 35.1942286 | AU135: 483.7715918
B136: 117 | C136: 487.9420366 | D136: 0.004155182746 | E136: 487.9420374 | F136: 487.9462489 | G136: 0.004211547631 | I136: -0.9643664403 | J136: -0.9979864763 | L136: -0.9970699323 | M136: -0.9970699323 | O136: 5.151896323e-11 | P136: 4.968230154e-11 | Q136: 5.141434103e-11 | S136: 1.982234204e-12 | T136: 2.552696985e-13 | V136: -72.88032885 | W136: -87.02845034 | X136: -95.93000735 | Z136: -87.02845034 | AD136: -124 | AE136: =IF('LOS Range'!$H$18>index+$H$25,'LOS Range'!$H$22,AD136+'LOS Range'!$H$26) -> -108 | AO136: 20.97154966 | AP136: 487.9420366 | AT136: 35.11967115 | AU136: 487.9420366
B137: 118 | C137: 492.1124813 | D137: 0.004119969733 | E137: 492.1124821 | F137: 492.116658 | G137: 0.004175856854 | I137: -0.9646630788 | J137: -0.9980035227 | L137: -0.9971193598 | M137: -0.9971193598 | O137: 5.064946048e-11 | P137: 4.885883529e-11 | Q137: 5.054748213e-11 | S137: 1.931369913e-12 | T137: 2.475874573e-13 | V137: -72.95425176 | W137: -87.14134538 | X137: -96.0627136 | Z137: -87.14134538 | AD137: -124 | AE137: =IF('LOS Range'!$H$18>index+$H$25,'LOS Range'!$H$22,AD137+'LOS Range'!$H$26) -> -108 | AO137: 20.85865462 | AP137: 492.1124813 | AT137: 35.04574824 | AU137: 492.1124813
B138: 119 | C138: 496.2829261 | D138: 0.004085348525 | E138: 496.2829269 | F138: 496.2870676 | G138: 0.004140765914 | I138: -0.9649548192 | J138: -0.998020283 | L138: -0.9971675473 | M138: -0.9971675473 | O138: 4.980178573e-11 | P138: 4.805567123e-11 | Q138: 4.970236289e-11 | S138: 1.882229912e-12 | T138: 2.402024272e-13 | V138: -73.02755085 | W138: -87.25327329 | X138: -96.19422608 | Z138: -87.25327329 | AD138: -124 | AE138: =IF('LOS Range'!$H$18>index+$H$25,'LOS Range'!$H$22,AD138+'LOS Range'!$H$26) -> -108 | AO138: 20.74672671 | AP138: 496.2829261 | AT138: 34.97244915 | AU138: 496.2829261
B139: 120 | C139: 500.4533709 | D139: 0.004051304328 | E139: 500.4533716 | F139: 500.4574779 | G139: 0.004106259815 | I139: -0.9652417819 | J139: -0.9980367641 | L139: -0.997214536 | M139: -0.997214536 | O139: 4.897521443e-11 | P139: 4.72721475e-11 | Q139: 4.887826243e-11 | S139: 1.834741797e-12 | T139: 2.331006444e-13 | V139: -73.10023654 | W139: -87.36425045 | X139: -96.32456526 | Z139: -87.36425045 | AD139: -124 | AE139: =IF('LOS Range'!$H$18>index+$H$25,'LOS Range'!$H$22,AD139+'LOS Range'!$H$26) -> -108 | AO139: 20.63574955 | AP139: 500.4533709 | AT139: 34.89976346 | AU139: 500.4533709
B140: 121 | C140: 504.6238156 | D140: 0.004017822836 | E140: 504.6238164 | F140: 504.6278887 | G140: 0.004072324059 | I140: -0.9655240833 | J140: -0.9980529731 | L140: -0.9972603651 | M140: -0.9972603651 | O140: 4.816905183e-11 | P140: 4.650762897e-11 | Q140: 4.807448946e-11 | S140: 1.788836777e-12 | T140: 2.262689138e-13 | V140: -73.17231902 | W140: -87.47429285 | X140: -96.45375108 | Z140: -87.47429285 | AD140: -124 | AE140: =IF('LOS Range'!$H$18>index+$H$25,'LOS Range'!$H$22,AD140+'LOS Range'!$H$26) -> -108 | AO140: 20.52570715 | AP140: 504.6238156 | AT140: 34.82768098 | AU140: 504.6238156
B141: 122 | C141: 508.7942604 | D141: 0.003984890212 | E141: 508.7942611 | F141: 508.7983001 | G141: 0.00403894462 | I141: -0.9658018361 | J141: -0.9980689167 | L141: -0.9973050726 | M141: -0.9973050726 | O141: 4.738263154e-11 | P141: 4.5761506e-11 | Q141: 4.729038092e-11 | S141: 1.74444947e-12 | T141: 2.196947607e-13 | V141: -73.24380823 | W141: -87.58341606 | X141: -96.581803 | Z141: -87.58341606 | AD141: -124 | AE141: =IF('LOS Range'!$H$18>index+$H$25,'LOS Range'!$H$22,AD141+'LOS Range'!$H$26) -> -108 | AO141: 20.41658394 | AP141: 508.7942604 | AT141: 34.75619177 | AU141: 508.7942604
B142: 123 | C142: 512.9647051 | D142: 0.00395249307 | E142: 512.9647059 | F142: 512.968712 | G142: 0.004006107929 | I142: -0.9660751493 | J142: -0.9980846013 | L142: -0.9973486948 | M142: -0.9973486948 | O142: 4.661531416e-11 | P142: 4.503319319e-11 | Q142: 4.652530054e-11 | S142: 1.701517706e-12 | T142: 2.133663854e-13 | V142: -73.31471385 | W142: -87.69163527 | X142: -96.70874 | Z142: -87.69163527 | AD142: -124 | AE142: =IF('LOS Range'!$H$18>index+$H$25,'LOS Range'!$H$22,AD142+'LOS Range'!$H$26) -> -108 | AO142: 20.30836473 | AP142: 512.9647051 | AT142: 34.68528615 | AU142: 512.9647051
B143: 124 | C143: 517.1351499 | D143: 0.003920618453 | E143: 517.1351506 | F143: 517.1391244 | G143: 0.003973800856 | I143: -0.9663441285 | J143: -0.9981000331 | L143: -0.9973912665 | M143: -0.9973912665 | O143: 4.586648595e-11 | P143: 4.432212822e-11 | Q143: 4.577863759e-11 | S143: 1.659982344e-12 | T143: 2.072726219e-13 | V143: -73.38504532 | W143: -87.79896531 | X143: -96.83458059 | Z143: -87.79896531 | AD143: -124 | AE143: =IF('LOS Range'!$H$18>index+$H$25,'LOS Range'!$H$22,AD143+'LOS Range'!$H$26) -> -108 | AO143: 20.20103469 | AP143: 517.1351499 | AT143: 34.61495468 | AU143: 517.1351499
B144: 125 | C144: 521.3055946 | D144: 0.003889253823 | E144: 521.3055954 | F144: 521.3095374 | G144: 0.003942010691 | I144: -0.966608876 | J144: -0.9981152183 | L144: -0.9974328212 | M144: -0.9974328212 | O144: 4.513555763e-11 | P144: 4.362777081e-11 | Q144: 4.504980564e-11 | S144: 1.619787102e-12 | T144: 2.01402899e-13 | V144: -73.45481188 | W144: -87.90542063 | X144: -96.95934283 | Z144: -87.90542063 | AD144: -124 | AE144: =IF('LOS Range'!$H$18>index+$H$25,'LOS Range'!$H$22,AD144+'LOS Range'!$H$26) -> -108 | AO144: 20.09457937 | AP144: 521.3055946 | AT144: 34.54518812 | AU144: 521.3055946
B145: 126 | C145: 525.4760394 | D145: 0.003858387037 | E145: 525.4760401 | F145: 525.4799508 | G145: 0.003910725126 | I145: -0.9668694908 | J145: -0.9981301626 | L145: -0.997473391 | M145: -0.997473391 | O145: 4.442196321e-11 | P145: 4.294960167e-11 | Q145: 4.433824141e-11 | S145: 1.580878397e-12 | T145: 1.957472036e-13 | V145: -73.52402252 | W145: -88.01101535 | X145: -97.08304433 | Z145: -88.01101535 | AD145: -124 | AE145: =IF('LOS Range'!$H$18>index+$H$25,'LOS Range'!$H$22,AD145+'LOS Range'!$H$26) -> -108 | AO145: 19.98898465 | AP145: 525.4760394 | AT145: 34.47597748 | AU145: 525.4760394
B146: 127 | C146: 529.6464842 | D146: 0.003828006335 | E146: 529.6464849 | F146: 529.6503648 | G146: 0.003879932241 | I146: -0.9671260691 | J146: -0.9981448719 | L146: -0.9975130067 | M146: -0.9975130067 | O146: 4.372515891e-11 | P146: 4.22871215e-11 | Q146: 4.364340371e-11 | S146: 1.543205193e-12 | T146: 1.902960477e-13 | V146: -73.59268604 | W146: -88.11576324 | X146: -97.20570232 | Z146: -88.11576324 | AD146: -124 | AE146: =IF('LOS Range'!$H$18>index+$H$25,'LOS Range'!$H$22,AD146+'LOS Range'!$H$26) -> -108 | AO146: 19.88423676 | AP146: 529.6464842 | AT146: 34.40731396 | AU146: 529.6464842
B147: 128 | C147: 533.8169289 | D147: 0.003798100324 | E147: 533.8169296 | F147: 533.8207792 | G147: 0.00384962049 | I147: -0.9673787038 | J147: -0.9981593515 | L147: -0.9975516981 | M147: -0.9975516981 | O147: 4.304462207e-11 | P147: 4.163985013e-11 | Q147: 4.296477237e-11 | S147: 1.506718866e-12 | T147: 1.850404361e-13 | V147: -73.66081101 | W147: -88.21967774 | X147: -97.32733357 | Z147: =IF(pol="Horizontal",X147,W147) -> -88.21967774 | AD147: -124 | AE147: =IF('LOS Range'!$H$18>index+$H$25,'LOS Range'!$H$22,AD147+'LOS Range'!$H$26) -> -108 | AO147: =ABS(AE147-Z147) -> 19.78032226 | AP147: 533.8169289 | AT147: 34.33918899 | AU147: 533.8169289
B148: 129 | C148: =D/10000*B148 -> 537.9873737 | D148: 0.003768657966 | E148: 537.9873744 | F148: 537.9911942 | G148: 0.003819778684 | I148: -0.9676274851 | J148: -0.9981736068 | L148: -0.9975894937 | M148: -0.9975894937 | O148: 4.237985025e-11 | P148: 4.10073256e-11 | Q148: 4.230184729e-11 | S148: 1.471373067e-12 | T148: 1.799718378e-13 | V148: -73.72840582 | W148: -88.32277198 | X148: -97.44795448 | Z148: -88.32277198 | AD148: =$AD$19 -> -124 | AE148: =IF('LOS Range'!$H$18>index+$H$25,'LOS Range'!$H$22,AD148+'LOS Range'!$H$26) -> -108 | AO148: 19.67722802 | AP148: =D/10000*B148 -> 537.9873737 | AT148: =ABS(AE148-V148) -> 34.27159418 | AU148: =D/10000*B148 -> 537.9873737
B149: 130 | C149: 542.1578184 | D149: 0.00373966856 | E149: 542.1578191 | F149: 542.1616095 | G149: 0.003790395977 | I149: -0.9678725006 | J149: -0.9981876431 | L149: -0.9976264209 | M149: -0.9976264209 | O149: 4.173036024e-11 | P149: 4.038910337e-11 | Q149: 4.16541475e-11 | S149: 1.437123602e-12 | T149: 1.750821584e-13 | V149: -73.79547866 | W149: -88.42505878 | X149: -97.56758108 | Z149: -88.42505878 | AD149: -124 | AE149: =IF('LOS Range'!$H$18>index+$H$25,'LOS Range'!$H$22,AD149+'LOS Range'!$H$26) -> -108 | AO149: 19.57494122 | AP149: 542.1578184 | AT149: 34.20452134 | AU149: 542.1578184
B150: =B149+1 -> 131 | C150: 546.3282632 | D150: =ATAN((H_1+H_3)/C150) -> 0.003711121735 | E150: =SQRT(ABS(H_1-H_3)^2+C150^2) -> 546.3282639 | F150: =SQRT(C150^2+(H_1+H_3)^2) -> 546.3320253 | G150: =F150-E150 -> 0.003761461856 | I150: =(er*SIN(D150)-SQRT(er-COS(D150)^2))/(er*SIN(D150)+SQRT(er-COS(D150)^2)) -> -0.9681138352 | J150: =(SIN(D150)-SQRT(er-COS(D150)^2))/(SIN(D150)+SQRT(er-COS(D150)^2)) -> -0.9982014652 | L150: =COS(G150*2*PI()/lambda)*SIGN(I150) -> -0.9976625061 | M150: =COS(G150*2*PI()/lambda)*SIGN(J150) -> -0.9976625061 | O150: =Pt_w*Gt_m*Gr_m*lambda^2/((4*PI()*E150)^2) -> 4.10956872e-11 | P150: =Pt_w*Gt_m*Gr_m*lambda^2/((4*PI()*F150)^2)*ABS(I150) -> 3.978475551e-11 | Q150: =Pt_w*Gt_m*Gr_m*lambda^2/((4*PI()*F150)^2)*ABS(J150) -> 4.102121032e-11 | S150: =O150+L150*P150 -> 1.403928316e-12 | T150: =O150+M150*Q150 -> 1.703637144e-13 | V150: =10*LOG10(O150*1000) -> -73.86203753 | W150: =10*LOG10(S150*1000) -> -88.52655067 | X150: =10*LOG10(T150*1000) -> -97.686229 | Z150: -88.52655067 | AD150: -124 | AE150: =IF('LOS Range'!$H$18>index+$H$25,'LOS Range'!$H$22,AD150+'LOS Range'!$H$26) -> -108 | AO150: 19.47344933 | AP150: 546.3282632 | AT150: 34.13796247 | AU150: 546.3282632
B151: 132 | C151: 550.4987079 | D151: 0.003683007432 | E151: 550.4987086 | F151: 550.5024416 | G151: 0.003732966127 | I151: -0.9683515711 | J151: -0.9982150781 | L151: -0.9976977747 | M151: -0.9976977747 | O151: 4.047538385e-11 | P151: 3.919386998e-11 | Q151: 4.04025905e-11 | S151: 1.37174698e-12 | T151: 1.658092093e-13 | V151: -73.92809024 | W151: -88.62725987 | X151: -97.80391352 | Z151: -88.62725987 | AD151: -124 | AE151: =IF('LOS Range'!$H$18>index+$H$25,'LOS Range'!$H$22,AD151+'LOS Range'!$H$26) -> -108 | AO151: 19.37274013 | AP151: 550.4987079 | AT151: 34.07190976 | AU151: 550.4987079
B152: 133 | C152: 554.6691527 | D152: 0.003655315894 | E152: 554.6691534 | F152: 554.6728583 | G152: 0.003704898901 | I152: -0.9685857882 | J152: -0.9982284865 | L152: -0.9977322512 | M152: -0.9977322512 | O152: 3.986901963e-11 | P152: 3.861604993e-11 | Q152: 3.979785946e-11 | S152: 1.340541196e-12 | T152: 1.614117116e-13 | V152: -73.99364443 | W152: -88.72719835 | X152: -97.92064957 | Z152: -88.72719835 | AD152: -124 | AE152: =IF('LOS Range'!$H$18>index+$H$25,'LOS Range'!$H$22,AD152+'LOS Range'!$H$26) -> -108 | AO152: 19.27280165 | AP152: 554.6691527 | AT152: 34.00635557 | AU152: 554.6691527
B153: 134 | C153: 558.8395975 | D153: 0.003628037658 | E153: 558.8395981 | F153: 558.8432754 | G153: 0.003677250584 | I153: -0.9688165642 | J153: -0.998241695 | L153: -0.9977659592 | M153: -0.9977659592 | O153: 3.927618001e-11 | P153: 3.8050913e-11 | Q153: 3.920660453e-11 | S153: 1.310274295e-12 | T153: 1.571646336e-13 | V153: -74.05870758 | W153: -88.82637779 | X153: -98.03645176 | Z153: -88.82637779 | AD153: -124 | AE153: =IF('LOS Range'!$H$18>index+$H$25,'LOS Range'!$H$22,AD153+'LOS Range'!$H$26) -> -108 | AO153: 19.17362221 | AP153: 558.8395975 | AT153: 33.94129242 | AU153: 558.8395975
B154: 135 | C154: 563.0100422 | D154: 0.003601163538 | E154: 563.0100429 | F154: 563.0136929 | G154: 0.003650011869 | I154: -0.9690439742 | J154: -0.9982547079 | L154: -0.9977989212 | M154: -0.9977989212 | O154: 3.869646575e-11 | P154: 3.749809075e-11 | Q154: 3.862842825e-11 | S154: 1.280911249e-12 | T154: 1.530617122e-13 | V154: -74.12328698 | W154: -88.9248096 | X154: -98.15133433 | Z154: -88.9248096 | AD154: -124 | AE154: =IF('LOS Range'!$H$18>index+$H$25,'LOS Range'!$H$22,AD154+'LOS Range'!$H$26) -> -108 | AO154: 19.0751904 | AP154: 563.0100422 | AT154: 33.87671302 | AU154: 563.0100422
B155: 136 | C155: 567.180487 | D155: 0.003574684621 | E155: 567.1804876 | F155: 567.1841108 | G155: 0.003623173718 | I155: -0.9692680915 | J155: -0.9982675296 | L155: -0.9978311591 | M155: -0.9978311591 | O155: 3.812949223e-11 | P155: 3.695722799e-11 | Q155: 3.806294772e-11 | S155: 1.252418586e-12 | T155: 1.490969901e-13 | V155: -74.18738978 | W155: -89.02250496 | X155: -98.26531124 | Z155: -89.02250496 | AD155: -124 | AE155: =IF('LOS Range'!$H$18>index+$H$25,'LOS Range'!$H$22,AD155+'LOS Range'!$H$26) -> -108 | AO155: 18.97749504 | AP155: 567.180487 | AT155: 33.81261022 | AU155: 567.180487
B156: 137 | C156: 571.3509317 | D156: 0.003548592252 | E156: 571.3509324 | F156: 571.3545291 | G156: 0.003596727362 | I156: -0.9694889869 | J156: -0.9982801644 | L156: -0.997862694 | M156: -0.997862694 | O156: 3.757488882e-11 | P156: 3.642798226e-11 | Q156: 3.750979393e-11 | S156: 1.224764309e-12 | T156: 1.452647993e-13 | V156: -74.25102296 | W156: -89.11947478 | X156: -98.37839612 | Z156: -89.11947478 | AD156: -124 | AE156: =IF('LOS Range'!$H$18>index+$H$25,'LOS Range'!$H$22,AD156+'LOS Range'!$H$26) -> -108 | AO156: 18.88052522 | AP156: 571.3509317 | AT156: 33.74897704 | AU156: 571.3509317
B157: 138 | C157: 575.5213765 | D157: 0.003522878029 | E157: 575.5213771 | F157: 575.5249478 | G157: 0.003570664283 | I157: -0.9697067295 | J157: -0.9982926161 | L157: -0.9978935462 | M157: -0.9978935462 | O157: 3.703229827e-11 | P157: 3.591002325e-11 | Q157: 3.69686112e-11 | S157: 1.197917824e-12 | T157: 1.415597446e-13 | V157: -74.31419334 | W157: -89.21572973 | X157: -98.4906023 | Z157: -89.21572973 | AD157: -124 | AE157: =IF('LOS Range'!$H$18>index+$H$25,'LOS Range'!$H$22,AD157+'LOS Range'!$H$26) -> -108 | AO157: 18.78427027 | AP157: 575.5213765 | AT157: 33.68580666 | AU157: 575.5213765
B158: 139 | C158: 579.6918212 | D158: 0.00349753379 | E158: 579.6918219 | F158: 579.6953669 | G158: 0.003544976208 | I158: -0.9699213863 | J158: -0.9983048889 | L158: -0.9979237352 | M158: -0.9979237352 | O158: 3.650137614e-11 | P158: 3.540303234e-11 | Q158: 3.643905658e-11 | S158: 1.171849863e-12 | T158: 1.379766885e-13 | V158: -74.37690762 | W158: -89.31128026 | X158: -98.60194283 | Z158: -89.31128026 | AD158: -124 | AE158: =IF('LOS Range'!$H$18>index+$H$25,'LOS Range'!$H$22,AD158+'LOS Range'!$H$26) -> -108 | AO158: 18.68871974 | AP158: 579.6918212 | AT158: 33.62309238 | AU158: 579.6918212
B159: 140 | C159: 583.862266 | D159: 0.003472551608 | E159: 583.8622666 | F159: 583.8657863 | G159: 0.003519655103 | I159: -0.9701330224 | J159: -0.9983169865 | L159: -0.99795328 | M159: -0.99795328 | O159: 3.598179022e-11 | P159: 3.490670205e-11 | Q159: 3.59207993e-11 | S159: 1.146532423e-12 | T159: 1.345107376e-13 | V159: -74.43917233 | W159: -89.40613659 | X159: -98.71243046 | Z159: -89.40613659 | AD159: -124 | AE159: =IF('LOS Range'!$H$18>index+$H$25,'LOS Range'!$H$22,AD159+'LOS Range'!$H$26) -> -108 | AO159: 18.59386341 | AP159: 583.862266 | AT159: 33.56082767 | AU159: 583.862266
B160: 141 | C160: 588.0327108 | D160: 0.003447923778 | E160: 588.0327114 | F160: 588.0362061 | G160: 0.003494693159 | I160: -0.9703417011 | J160: -0.9983289126 | L160: -0.9979821986 | M160: -0.9979821986 | O160: 3.547322008e-11 | P160: 3.442073559e-11 | Q160: 3.54135203e-11 | S160: 1.1219387e-12 | T160: 1.31157229e-13 | V160: -74.50099387 | W160: -89.50030871 | X160: -98.82207767 | Z160: -89.50030871 | AD160: -124 | AE160: =IF('LOS Range'!$H$18>index+$H$25,'LOS Range'!$H$22,AD160+'LOS Range'!$H$26) -> -108 | AO160: 18.49969129 | AP160: 588.0327108 | AT160: 33.49900613 | AU160: 588.0327108
B161: 142 | C161: 592.2031555 | D161: 0.003423642815 | E161: 592.2031562 | F161: 592.2066262 | G161: 0.003470082788 | I161: -0.9705474841 | J161: -0.9983406709 | L161: -0.9980105087 | M161: -0.9980105087 | O161: 3.49753565e-11 | P161: 3.394484644e-11 | Q161: 3.491691167e-11 | S161: 1.09804303e-12 | T161: 1.279117176e-13 | V161: -74.5623785 | W161: -89.59380641 | X161: -98.93089669 | Z161: -89.59380641 | AD161: -124 | AE161: =IF('LOS Range'!$H$18>index+$H$25,'LOS Range'!$H$22,AD161+'LOS Range'!$H$26) -> -108 | AO161: 18.40619359 | AP161: 592.2031555 | AT161: 33.4376215 | AU161: 592.2031555
B162: 143 | C162: 596.3736003 | D162: 0.003399701442 | E162: 596.3736009 | F162: 596.3770467 | G162: 0.003445816616 | I162: -0.9707504311 | J162: -0.9983522649 | L162: -0.9980382272 | M162: -0.9980382272 | O162: 3.448790104e-11 | P162: 3.347875793e-11 | Q162: 3.443067624e-11 | S162: 1.074820832e-12 | T162: 1.24769965e-13 | V162: -74.62333236 | W162: -89.68663925 | X162: -99.03889947 | Z162: -89.68663925 | AD162: -124 | AE162: =IF('LOS Range'!$H$18>index+$H$25,'LOS Range'!$H$22,AD162+'LOS Range'!$H$26) -> -108 | AO162: 18.31336075 | AP162: 596.3736003 | AT162: 33.37666764 | AU162: 596.3736003
B163: 144 | C163: 600.544045 | D163: 0.003376092584 | E163: 600.5440457 | F163: 600.5474675 | G163: 0.003421887471 | I163: -0.9709506004 | J163: -0.998363698 | L163: -0.9980653706 | M163: -0.9980653706 | O163: 3.401056561e-11 | P163: 3.302220277e-11 | Q163: 3.395452711e-11 | S163: 1.052248558e-12 | T163: 1.217279281e-13 | V163: -74.68386146 | W163: -89.77881661 | X163: -99.1460977 | Z163: -89.77881661 | AD163: -124 | AE163: =IF('LOS Range'!$H$18>index+$H$25,'LOS Range'!$H$22,AD163+'LOS Range'!$H$26) -> -108 | AO163: 18.22118339 | AP163: 600.544045 | AT163: 33.31613854 | AU163: 600.544045
B164: 145 | C164: 604.7144898 | D164: 0.003352809362 | E164: 604.7144904 | F164: 604.7178887 | G164: 0.00339828838 | I164: -0.9711480486 | J164: -0.9983749736 | L164: -0.9980919545 | M164: -0.9980919545 | O164: 3.354307198e-11 | P164: 3.257492278e-11 | Q164: 3.348818722e-11 | S164: 1.030303639e-12 | T164: 1.18781749e-13 | V164: -74.74397166 | W164: -89.87034766 | X164: -99.25250284 | Z164: -89.87034766 | AD164: -124 | AE164: =IF('LOS Range'!$H$18>index+$H$25,'LOS Range'!$H$22,AD164+'LOS Range'!$H$26) -> -108 | AO164: 18.12965234 | AP164: 604.7144898 | AT164: 33.25602834 | AU164: 604.7144898
B165: 146 | C165: 608.8849345 | D165: 0.003329845085 | E165: 608.8849352 | F165: 608.8883102 | G165: 0.003375012561 | I165: -0.9713428308 | J165: -0.9983860948 | L165: -0.9981179943 | M165: -0.9981179943 | O165: 3.308515146e-11 | P165: 3.213666841e-11 | Q165: 3.303138898e-11 | S165: 1.008964441e-12 | T165: 1.15927745e-13 | V165: -74.80366873 | W165: -89.9612414 | X165: -99.35812612 | Z165: -89.9612414 | AD165: -124 | AE165: =IF('LOS Range'!$H$18>index+$H$25,'LOS Range'!$H$22,AD165+'LOS Range'!$H$26) -> -108 | AO165: 18.0387586 | AP165: 608.8849345 | AT165: 33.19633127 | AU165: 608.8849345
B166: 147 | C166: 613.0553793 | D166: 0.003307193243 | E166: 613.0553799 | F166: 613.058732 | G166: 0.003352053418 | I166: -0.9715350008 | J166: -0.9983970648 | L166: -0.9981435046 | M166: -0.9981435046 | O166: 3.263654443e-11 | P166: 3.170719848e-11 | Q166: 3.258387384e-11 | S166: 9.882102159e-13 | T166: 1.131623999e-13 | V166: -74.86295831 | W166: -90.05150661 | X166: -99.46297851 | Z166: -90.05150661 | AD166: -124 | AE166: =IF('LOS Range'!$H$18>index+$H$25,'LOS Range'!$H$22,AD166+'LOS Range'!$H$26) -> -108 | AO166: 17.94849339 | AP166: 613.0553793 | AT166: 33.13704169 | AU166: 613.0553793
B167: 148 | C167: 617.2258241 | D167: 0.003284847504 | E167: 617.2258247 | F167: 617.2291541 | G167: 0.003329404531 | I167: -0.9717246105 | J167: -0.9984078867 | L167: -0.9981684999 | M167: -0.9981684999 | O167: 3.219700002e-11 | P167: 3.128627978e-11 | Q167: 3.214539196e-11 | S167: 9.680210658e-13 | T167: 1.10482355e-13 | V167: -74.92184592 | W167: -90.14115192 | X167: -99.56707077 | Z167: -90.14115192 | AD167: -124 | AE167: =IF('LOS Range'!$H$18>index+$H$25,'LOS Range'!$H$22,AD167+'LOS Range'!$H$26) -> -108 | AO167: 17.85884808 | AP167: 617.2258241 | AT167: 33.07815408 | AU167: 617.2258241
B168: 149 | C168: 621.3962688 | D168: 0.003262801705 | E168: 621.3962694 | F168: 621.3995765 | G168: 0.003307059654 | I168: -0.971911711 | J168: -0.9984185635 | L168: -0.9981929938 | M168: -0.9981929938 | O168: 3.176627578e-11 | P168: 3.087368682e-11 | Q168: 3.171570185e-11 | S168: 9.483778972e-13 | T168: 1.078844013e-13 | V168: -74.98033698 | W168: -90.23018576 | X168: -99.67041344 | Z168: -90.23018576 | AD168: -124 | AE168: =IF('LOS Range'!$H$18>index+$H$25,'LOS Range'!$H$22,AD168+'LOS Range'!$H$26) -> -108 | AO168: 17.76981424 | AP168: 621.3962688 | AT168: 33.01966302 | AU168: 621.3962688
B169: 150 | C169: 625.5667136 | D169: 0.003241049846 | E169: 625.5667142 | F169: 625.5699992 | G169: 0.003285012706 | I169: -0.9720963517 | J169: -0.998429098 | L169: -0.9982169996 | M169: -0.9982169996 | O169: 3.134413727e-11 | P169: 3.046920148e-11 | Q169: 3.129457003e-11 | S169: 9.292623856e-13 | T169: 1.053654715e-13 | V169: -75.03843679 | W169: -90.31861642 | X169: -99.77301685 | Z169: -90.31861642 | AD169: -124 | AE169: =IF('LOS Range'!$H$18>index+$H$25,'LOS Range'!$H$22,AD169+'LOS Range'!$H$26) -> -108 | AO169: 17.68138358 | AP169: 625.5667136 | AT169: 32.96156321 | AU169: 625.5667136
B170: 151 | C170: 629.7371583 | D170: 0.003219586089 | E170: 629.7371589 | F170: 629.7404222 | G170: 0.003263257768 | I170: -0.9722785807 | J170: -0.9984394931 | L170: -0.9982405303 | M170: -0.9982405303 | O170: 3.093035782e-11 | P170: 3.007261273e-11 | Q170: 3.088177072e-11 | S170: 9.106569393e-13 | T170: 1.029226333e-13 | V170: -75.09615056 | W170: -90.40645199 | X170: -99.87489111 | Z170: -90.40645199 | AD170: -124 | AE170: =IF('LOS Range'!$H$18>index+$H$25,'LOS Range'!$H$22,AD170+'LOS Range'!$H$26) -> -108 | AO170: 17.59354801 | AP170: 629.7371583 | AT170: 32.90384944 | AU170: 629.7371583
B171: 152 | C171: 633.9076031 | D171: 0.003198404746 | E171: 633.9076037 | F171: 633.9108455 | G171: 0.003241789077 | I171: -0.972458445 | J171: -0.9984497515 | L171: -0.9982635983 | M171: -0.9982635983 | O171: 3.052471817e-11 | P171: 2.968371636e-11 | Q171: 3.047708555e-11 | S171: 8.925446655e-13 | T171: 1.005530822e-13 | V171: -75.15348337 | W171: -90.49370041 | X171: -99.97604613 | Z171: -90.49370041 | AD171: -124 | AE171: =IF('LOS Range'!$H$18>index+$H$25,'LOS Range'!$H$22,AD171+'LOS Range'!$H$26) -> -108 | AO171: 17.50629959 | AP171: 633.9076031 | AT171: 32.84651663 | AU171: 633.9076031
B172: 153 | C172: 638.0780478 | D172: 0.003177500281 | E172: 638.0780484 | F172: 638.081269 | G172: 0.00322060102 | I172: -0.9726359904 | J172: -0.9984598759 | L172: -0.9982862156 | M172: -0.9982862156 | O172: 3.012700622e-11 | P172: 2.930231473e-11 | Q172: 3.008030324e-11 | S172: 8.749093381e-13 | T172: 9.825413525e-14 | V172: -75.21044023 | W172: -90.58036948 | X172: -100.0764916 | Z172: -90.58036948 | AD172: -124 | AE172: =IF('LOS Range'!$H$18>index+$H$25,'LOS Range'!$H$22,AD172+'LOS Range'!$H$26) -> -108 | AO172: 17.41963052 | AP172: 638.0780478 | AT172: 32.78955977 | AU172: 638.0780478
B173: 154 | C173: 642.2484926 | D173: 0.0031568673 | E173: 642.2484932 | F173: 642.2516929 | G173: 0.003199688131 | I173: -0.9728112613 | J173: -0.998469869 | L173: -0.9983083939 | M173: -0.9983083939 | O173: 2.973701672e-11 | P173: 2.89282165e-11 | Q173: 2.969121935e-11 | S173: 8.577353671e-13 | T173: 9.6023225e-14 | V173: -75.26702603 | W173: -90.66646682 | X173: -100.1762371 | Z173: -90.66646682 | AD173: -124 | AE173: =IF('LOS Range'!$H$18>index+$H$25,'LOS Range'!$H$22,AD173+'LOS Range'!$H$26) -> -108 | AO173: 17.33353318 | AP173: 642.2484926 | AT173: 32.73297397 | AU173: 642.2484926
B174: 155 | C174: 646.4189374 | D174: 0.003136500548 | E174: 646.4189379 | F174: 646.422117 | G174: 0.003179045084 | I174: -0.9729843013 | J174: -0.9984797332 | L174: -0.9983301445 | M174: -0.9983301445 | O174: 2.935455104e-11 | P174: 2.85612364e-11 | Q174: 2.9309636e-11 | S174: 8.410077698e-13 | T174: 9.385789386e-14 | V174: -75.32324558 | W174: -90.75199992 | X174: -100.275292 | Z174: -90.75199992 | AD174: -124 | AE174: =IF('LOS Range'!$H$18>index+$H$25,'LOS Range'!$H$22,AD174+'LOS Range'!$H$26) -> -108 | AO174: 17.24800008 | AP174: 646.4189374 | AT174: 32.67675442 | AU174: 646.4189374
B175: 156 | C175: 650.5893821 | D175: 0.003116394906 | E175: 650.5893827 | F175: 650.5925414 | G175: 0.003158666689 | I175: -0.9731551526 | J175: -0.998489471 | L175: -0.9983514783 | M175: -0.9983514783 | O175: 2.897941686e-11 | P175: 2.8201195e-11 | Q175: 2.893536164e-11 | S175: 8.247121435e-13 | T175: 9.175578863e-14 | V175: -75.37910358 | W175: -90.83697611 | X175: -100.3736653 | Z175: -90.83697611 | AD175: -124 | AE175: =IF('LOS Range'!$H$18>index+$H$25,'LOS Range'!$H$22,AD175+'LOS Range'!$H$26) -> -108 | AO175: 17.16302389 | AP175: 650.5893821 | AT175: 32.62089642 | AU175: 650.5893821
B176: 157 | C176: 654.7598269 | D176: 0.003096545384 | E176: 654.7598274 | F176: 654.762966 | G176: 0.00313854789 | I176: -0.9733238566 | J176: -0.9984990849 | L176: -0.9983724059 | M176: -0.9983724059 | O176: 2.8611428e-11 | P176: 2.784791846e-11 | Q176: 2.856821079e-11 | S176: 8.088346393e-13 | T176: 8.971465547e-14 | V176: -75.43460466 | W176: -90.92140258 | X176: -100.4713661 | Z176: -90.92140258 | AD176: -124 | AE176: =IF('LOS Range'!$H$18>index+$H$25,'LOS Range'!$H$22,AD176+'LOS Range'!$H$26) -> -108 | AO176: 17.07859742 | AP176: 654.7598269 | AT176: 32.56539534 | AU176: 654.7598269
B177: 158 | C177: 658.9302716 | D177: 0.00307694712 | E177: 658.9302722 | F177: 658.9333909 | G177: 0.003118683757 | I177: -0.9734904534 | J177: -0.9985085772 | L177: -0.9983929376 | M177: -0.9983929376 | O177: 2.825040413e-11 | P177: 2.75012384e-11 | Q177: 2.820800382e-11 | S177: 7.933619374e-13 | T177: 8.773233503e-14 | V177: -75.48975335 | W177: -91.00528639 | X177: -100.5684031 | Z177: -91.00528639 | AD177: -124 | AE177: =IF('LOS Range'!$H$18>index+$H$25,'LOS Range'!$H$22,AD177+'LOS Range'!$H$26) -> -108 | AO177: 16.99471361 | AP177: 658.9302716 | AT177: 32.51024665 | AU177: 658.9302716
B178: 159 | C178: 663.1007164 | D178: 0.003057595372 | E178: 663.100717 | F178: 663.103816 | G178: 0.003099069486 | I178: -0.9736549822 | J178: -0.9985179502 | L178: -0.9984130832 | M178: -0.9984130832 | O178: 2.789617059e-11 | P178: 2.71609916e-11 | Q178: 2.785456671e-11 | S178: 7.782812239e-13 | T178: 8.580675797e-14 | V178: -75.5445541 | W178: -91.08863447 | X178: -100.6647851 | Z178: -91.08863447 | AD178: -124 | AE178: =IF('LOS Range'!$H$18>index+$H$25,'LOS Range'!$H$22,AD178+'LOS Range'!$H$26) -> -108 | AO178: 16.91136553 | AP178: 663.1007164 | AT178: 32.4554459 | AU178: 663.1007164
B179: 160 | C179: 667.2711611 | D179: 0.003038485519 | E179: 667.2711617 | F179: 667.2742414 | G179: 0.003079700391 | I179: -0.9738174814 | J179: -0.9985272061 | L179: -0.9984328524 | M179: -0.9984328524 | O179: 2.754855815e-11 | P179: 2.682701988e-11 | Q179: 2.750773089e-11 | S179: 7.635801683e-13 | T179: 8.39359406e-14 | V179: -75.59901126 | W179: -91.1714536 | X179: -100.7605204 | Z179: -91.1714536 | AD179: -124 | AE179: =IF('LOS Range'!$H$18>index+$H$25,'LOS Range'!$H$22,AD179+'LOS Range'!$H$26) -> -108 | AO179: 16.8285464 | AP179: 667.2711611 | AT179: 32.40098874 | AU179: 667.2711611
B180: 161 | C180: 671.4416059 | D180: 0.003019613053 | E180: 671.4416065 | F180: 671.444667 | G180: 0.003060571905 | I180: -0.9739779883 | J180: -0.9985363471 | L180: -0.9984522545 | M180: -0.9984522545 | O180: 2.720740283e-11 | P180: 2.64991699e-11 | Q180: 2.716733296e-11 | S180: 7.492469027e-13 | T180: 8.211798087e-14 | V180: -75.65312913 | W180: -91.25375044 | X180: -100.8556174 | Z180: -91.25375044 | AD180: -124 | AE180: =IF('LOS Range'!$H$18>index+$H$25,'LOS Range'!$H$22,AD180+'LOS Range'!$H$26) -> -108 | AO180: 16.74624956 | AP180: 671.4416059 | AT180: 32.34687087 | AU180: 671.4416059
B181: 162 | C181: 675.6120507 | D181: 0.003000973579 | E181: 675.6120512 | F181: 675.6150929 | G181: 0.003041679571 | I181: -0.9741365393 | J181: -0.9985453753 | L181: -0.9984712986 | M181: -0.9984712986 | O181: 2.687254568e-11 | P181: 2.617729294e-11 | Q181: 2.68332146e-11 | S181: 7.35270001e-13 | T181: 8.035105446e-14 | V181: -75.7069119 | W181: -91.33553153 | X181: -100.9500842 | Z181: -91.33553153 | AD181: -124 | AE181: =IF('LOS Range'!$H$18>index+$H$25,'LOS Range'!$H$22,AD181+'LOS Range'!$H$26) -> -108 | AO181: 16.66446847 | AP181: 675.6120507 | AT181: 32.2930881 | AU181: 675.6120507
B182: 163 | C182: 679.7824954 | D182: 0.002982562807 | E182: 679.782496 | F182: 679.785519 | G182: 0.003023019043 | I182: -0.9742931699 | J182: -0.9985542928 | L182: -0.9984899933 | M182: -0.9984899933 | O182: 2.654383262e-11 | P182: 2.586124481e-11 | Q182: 2.650522227e-11 | S182: 7.216384608e-13 | T182: 7.863341118e-14 | V182: -75.7603637 | W182: -91.41680328 | X182: -101.0439288 | Z182: -91.41680328 | AD182: -124 | AE182: =IF('LOS Range'!$H$18>index+$H$25,'LOS Range'!$H$22,AD182+'LOS Range'!$H$26) -> -108 | AO182: 16.58319672 | AP182: 679.7824954 | AT182: 32.2396363 | AU182: 679.7824954
B183: 164 | C183: 683.9529402 | D183: 0.002964376556 | E183: 683.9529407 | F183: 683.9559453 | G183: 0.003004586082 | I183: -0.9744479148 | J183: -0.9985631017 | L183: -0.9985083473 | M183: -0.9985083473 | O183: 2.622111425e-11 | P183: 2.555088561e-11 | Q183: 2.618320713e-11 | S183: 7.083416843e-13 | T183: 7.696337148e-14 | V183: -75.81348857 | W183: -91.497572 | X183: -101.1371592 | Z183: -91.497572 | AD183: -124 | AE183: =IF('LOS Range'!$H$18>index+$H$25,'LOS Range'!$H$22,AD183+'LOS Range'!$H$26) -> -108 | AO183: 16.502428 | AP183: 683.9529402 | AT183: 32.18651143 | AU183: 683.9529402
B184: 165 | C184: 688.1233849 | D184: 0.002946410742 | E184: 688.1233855 | F184: 688.1263719 | G184: 0.002986376548 | I184: -0.9746008078 | J184: -0.9985718039 | L184: -0.9985263686 | M184: -0.9985263686 | O184: 2.590424569e-11 | P184: 2.524607964e-11 | Q184: 2.586702482e-11 | S184: 6.953694615e-13 | T184: 7.533932321e-14 | V184: -75.8662905 | W184: -91.57784386 | X184: -101.2297829 | Z184: -91.57784386 | AD184: -124 | AE184: =IF('LOS Range'!$H$18>index+$H$25,'LOS Range'!$H$22,AD184+'LOS Range'!$H$26) -> -108 | AO184: 16.42215614 | AP184: 688.1233849 | AT184: 32.1337095 | AU184: 688.1233849
B185: 166 | C185: 692.2938297 | D185: 0.002928661381 | E185: 692.2938302 | F185: 692.2967986 | G185: 0.002968386406 | I185: -0.974751882 | J185: -0.9985804013 | L185: -0.9985440653 | M185: -0.9985440653 | O185: 2.55930864e-11 | P185: 2.49466952e-11 | Q185: 2.555653533e-11 | S185: 6.827119539e-13 | T185: 7.375971848e-14 | V185: -75.91877337 | W185: -91.65762493 | X185: -101.3218075 | Z185: -91.65762493 | AD185: -124 | AE185: =IF('LOS Range'!$H$18>index+$H$25,'LOS Range'!$H$22,AD185+'LOS Range'!$H$26) -> -108 | AO185: 16.34237507 | AP185: 692.2938297 | AT185: 32.08122663 | AU185: 692.2938297
B186: 167 | C186: 696.4642744 | D186: 0.002911124586 | E186: 696.464275 | F186: 696.4672256 | G186: 0.002950611712 | I186: -0.9749011697 | J186: -0.9985888958 | L186: -0.9985614452 | M186: -0.9985614452 | O186: 2.528750005e-11 | P186: 2.465260449e-11 | Q186: 2.525160279e-11 | S186: 6.703596783e-13 | T186: 7.222307077e-14 | V186: -75.97094103 | W186: -91.73692116 | X186: -101.4132405 | Z186: -91.73692116 | AD186: -124 | AE186: =IF('LOS Range'!$H$18>index+$H$25,'LOS Range'!$H$22,AD186+'LOS Range'!$H$26) -> -108 | AO186: 16.26307884 | AP186: 696.4642744 | AT186: 32.02905897 | AU186: 696.4642744
B187: 168 | C187: 700.6347192 | D187: 0.00289379656 | E187: 700.6347197 | F187: 700.6376528 | G187: 0.002933048621 | I187: -0.9750487024 | J187: -0.9985972893 | L187: -0.9985785158 | M187: -0.9985785158 | O187: 2.498735434e-11 | P187: 2.436368344e-11 | Q187: 2.495209539e-11 | S187: 6.583034925e-13 | T187: 7.072795209e-14 | V187: -76.02279725 | W187: -91.81573841 | X187: -101.5040892 | Z187: -91.81573841 | AD187: -124 | AE187: =IF('LOS Range'!$H$18>index+$H$25,'LOS Range'!$H$22,AD187+'LOS Range'!$H$26) -> -108 | AO187: 16.18426159 | AP187: 700.6347192 | AT187: 31.97720275 | AU187: 700.6347192
B188: 169 | C188: 704.805164 | D188: 0.002876673599 | E188: 704.8051645 | F188: 704.8080802 | G188: 0.002915693376 | I188: -0.9751945108 | J188: -0.9986055835 | L188: -0.9985952843 | M188: -0.9985952843 | O188: 2.469252088e-11 | P188: 2.407981159e-11 | Q188: 2.465788521e-11 | S188: 6.465345806e-13 | T188: 6.927299034e-14 | V188: -76.0743457 | W188: -91.89408241 | X188: -101.5943606 | Z188: -91.89408241 | AD188: -124 | AE188: =IF('LOS Range'!$H$18>index+$H$25,'LOS Range'!$H$22,AD188+'LOS Range'!$H$26) -> -108 | AO188: 16.10591759 | AP188: 704.805164 | AT188: 31.9256543 | AU188: 704.805164
B189: 170 | C189: 708.9756087 | D189: 0.002859752082 | E189: 708.9756092 | F189: 708.9785078 | G189: 0.002898542309 | I189: -0.9753386249 | J189: -0.9986137802 | L189: -0.9986117579 | M189: -0.9986117579 | O189: 2.440287505e-11 | P189: 2.380087198e-11 | Q189: 2.436884804e-11 | S189: 6.350444399e-13 | T189: 6.785686684e-14 | V189: -76.12559004 | W189: -91.97195882 | X189: -101.684062 | Z189: -91.97195882 | AD189: -124 | AE189: =IF('LOS Range'!$H$18>index+$H$25,'LOS Range'!$H$22,AD189+'LOS Range'!$H$26) -> -108 | AO189: 16.02804118 | AP189: 708.9756087 | AT189: 31.87440996 | AU189: 708.9756087
B190: 171 | C190: 713.1460535 | D190: 0.002843028476 | E190: 713.146054 | F190: 713.1489356 | G190: 0.002881591838 | I190: -0.9754810742 | J190: -0.9986218811 | L190: -0.9986279434 | M190: -0.9986279434 | O190: 2.411829585e-11 | P190: 2.352675101e-11 | Q190: 2.408486333e-11 | S190: 6.238248677e-13 | T190: 6.64783139e-14 | V190: -76.17653382 | W190: -92.04937317 | X190: -101.7732 | Z190: -92.04937317 | AD190: -124 | AE190: =IF('LOS Range'!$H$18>index+$H$25,'LOS Range'!$H$22,AD190+'LOS Range'!$H$26) -> -108 | AO190: 15.95062683 | AP190: 713.1460535 | AT190: 31.82346618 | AU190: 713.1460535
B191: 172 | C191: 717.3164982 | D191: 0.002826499329 | E191: 717.3164988 | F191: 717.3193636 | G191: 0.002864838464 | I191: -0.9756218873 | J191: -0.9986298878 | L191: -0.9986438475 | M191: -0.9986438475 | O191: 2.383866579e-11 | P191: 2.325733834e-11 | Q191: 2.3805814e-11 | S191: 6.128679492e-13 | T191: 6.513611257e-14 | V191: -76.22718055 | W191: -92.1263309 | X191: -101.8617816 | Z191: -92.1263309 | AD191: -124 | AE191: =IF('LOS Range'!$H$18>index+$H$25,'LOS Range'!$H$22,AD191+'LOS Range'!$H$26) -> -108 | AO191: 15.8736691 | AP191: 717.3164982 | AT191: 31.77281945 | AU191: 717.3164982
B192: 173 | C192: 721.486943 | D192: 0.002810161269 | E192: 721.4869435 | F192: 721.4897918 | G192: 0.00284827877 | I192: -0.9757610923 | J192: -0.9986378021 | L192: -0.9986594767 | M192: -0.9986594767 | O192: 2.356387079e-11 | P192: 2.299252676e-11 | Q192: 2.353158634e-11 | S192: 6.021660456e-13 | T192: 6.382909051e-14 | V192: -76.27753367 | W192: -92.20283737 | X192: -101.9498134 | Z192: -92.20283737 | AD192: -124 | AE192: =IF('LOS Range'!$H$18>index+$H$25,'LOS Range'!$H$22,AD192+'LOS Range'!$H$26) -> -108 | AO192: 15.79716263 | AP192: 721.486943 | AT192: 31.72246633 | AU192: 721.486943
B193: 174 | C193: 725.6573877 | D193: 0.002794011001 | E193: 725.6573883 | F193: 725.6602202 | G193: 0.002831909415 | I193: -0.9758987165 | J193: -0.9986456255 | L193: -0.9986748373 | M193: -0.9986748373 | O193: 2.32938e-11 | P193: 2.27322121e-11 | Q193: 2.326206991e-11 | S193: 5.917117833e-13 | T193: 6.255611988e-14 | V193: -76.32759658 | W193: -92.27889782 | X193: -102.037302 | Z193: -92.27889782 | AD193: -124 | AE193: =IF('LOS Range'!$H$18>index+$H$25,'LOS Range'!$H$22,AD193+'LOS Range'!$H$26) -> -108 | AO193: 15.72110218 | AP193: 725.6573877 | AT193: 31.67240342 | AU193: 725.6573877
B194: 175 | C194: 729.8278325 | D194: 0.002778045306 | E194: 729.827833 | F194: 729.8306487 | G194: 0.002815727138 | I194: -0.9760347868 | J194: -0.9986533595 | L194: -0.9986899354 | M194: -0.9986899354 | O194: 2.302834576e-11 | P194: 2.247629311e-11 | Q194: 2.299715741e-11 | S194: 5.814980427e-13 | T194: 6.13161155e-14 | V194: -76.37737258 | W194: -92.35451743 | X194: -102.1242537 | Z194: -92.35451743 | AD194: -124 | AE194: =IF('LOS Range'!$H$18>index+$H$25,'LOS Range'!$H$22,AD194+'LOS Range'!$H$26) -> -108 | AO194: 15.64548257 | AP194: 729.8278325 | AT194: 31.62262742 | AU194: 729.8278325
B195: 176 | C195: 733.9982773 | D195: 0.002762261038 | E195: 733.9982778 | F195: 734.0010775 | G195: 0.00279972875 | I195: -0.9761693292 | J195: -0.9986610056 | L195: -0.9987047769 | M195: -0.9987047769 | O195: 2.276740344e-11 | P195: 2.22246714e-11 | Q195: 2.273674456e-11 | S195: 5.715179487e-13 | T195: 6.010803289e-14 | V195: -76.42686497 | W195: -92.42970126 | X195: -102.2106748 | Z195: -92.42970126 | AD195: -124 | AE195: =IF('LOS Range'!$H$18>index+$H$25,'LOS Range'!$H$22,AD195+'LOS Range'!$H$26) -> -108 | AO195: 15.57029874 | AP195: 733.9982773 | AT195: 31.57313503 | AU195: 733.9982773
B196: 177 | C196: 738.168722 | D196: 0.002746655122 | E196: 738.1687225 | F196: 738.1715064 | G196: 0.002783911133 | I196: -0.9763023694 | J196: -0.9986685655 | L196: -0.9987193677 | M196: -0.9987193677 | O196: 2.251087136e-11 | P196: 2.197725128e-11 | Q196: 2.248073004e-11 | S196: 5.617648602e-13 | T196: 5.893086661e-14 | V196: -76.47607694 | W196: -92.5044543 | X196: -102.2965717 | Z196: -92.5044543 | AD196: -124 | AE196: =IF('LOS Range'!$H$18>index+$H$25,'LOS Range'!$H$22,AD196+'LOS Range'!$H$26) -> -108 | AO196: 15.4955457 | AP196: 738.168722 | AT196: 31.52392306 | AU196: 738.168722
B197: 178 | C197: 742.3391668 | D197: 0.002731224552 | E197: 742.3391673 | F197: 742.3419356 | G197: 0.002768271242 | I197: -0.9764339324 | J197: -0.9986760404 | L197: -0.9987337133 | M197: -0.9987337133 | O197: 2.22586507e-11 | P197: 2.173393974e-11 | Q197: 2.222901536e-11 | S197: 5.522323617e-13 | T197: 5.778364851e-14 | V197: -76.52501166 | W197: -92.57878147 | X197: -102.3819504 | Z197: -92.57878147 | AD197: -124 | AE197: =IF('LOS Range'!$H$18>index+$H$25,'LOS Range'!$H$22,AD197+'LOS Range'!$H$26) -> -108 | AO197: 15.42121853 | AP197: 742.3391668 | AT197: 31.47498834 | AU197: 742.3391668
B198: 179 | C198: 746.5096115 | D198: 0.00271596639 | E198: 746.509612 | F198: 746.5123648 | G198: 0.002752806096 | I198: -0.9765640427 | J198: -0.9986834319 | L198: -0.9987478193 | M198: -0.9987478193 | O198: 2.201064539e-11 | P198: 2.149464632e-11 | Q198: 2.198150476e-11 | S198: 5.429142536e-13 | T198: 5.66654462e-14 | V198: -76.57367223 | W198: -92.65268756 | X198: -102.4668169 | Z198: -92.65268756 | AD198: -124 | AE198: =IF('LOS Range'!$H$18>index+$H$25,'LOS Range'!$H$22,AD198+'LOS Range'!$H$26) -> -108 | AO198: 15.34731244 | AP198: 746.5096115 | AT198: 31.42632777 | AU198: 746.5096115
B199: 180 | C199: 750.6800563 | D199: 0.002700877761 | E199: 750.6800568 | F199: 750.6827943 | G199: 0.002737512785 | I199: -0.9766927242 | J199: -0.9986907414 | L199: -0.9987616908 | M199: -0.9987616908 | O199: 2.1766762e-11 | P199: 2.125928303e-11 | Q199: 2.173810514e-11 | S199: 5.338045443e-13 | T199: 5.557536148e-14 | V199: -76.62206171 | W199: -92.72617733 | X199: -102.551177 | Z199: -92.72617733 | AD199: -124 | AE199: =IF('LOS Range'!$H$18>index+$H$25,'LOS Range'!$H$22,AD199+'LOS Range'!$H$26) -> -108 | AO199: 15.27382267 | AP199: 750.6800563 | AT199: 31.37793829 | AU199: 750.6800563
B200: 181 | C200: 754.850501 | D200: 0.002685955857 | E200: 754.8505015 | F200: 754.8532239 | G200: 0.00272238846 | I200: -0.9768200002 | J200: -0.9986979701 | L200: -0.9987753332 | M200: -0.9987753332 | O200: 2.152690971e-11 | P200: 2.102776427e-11 | Q200: 2.149872596e-11 | S200: 5.24897442e-13 | T200: 5.451252894e-14 | V200: -76.67018311 | W200: -92.79925544 | X200: -102.6350367 | Z200: -92.79925544 | AD200: -124 | AE200: =IF('LOS Range'!$H$18>index+$H$25,'LOS Range'!$H$22,AD200+'LOS Range'!$H$26) -> -108 | AO200: 15.20074456 | AP200: 754.850501 | AT200: 31.32981689 | AU200: 754.850501
B201: 182 | C201: 759.0209458 | D201: 0.002671197928 | E201: 759.0209463 | F201: 759.0236537 | G201: 0.002707430335 | I201: -0.9769458938 | J201: -0.9987051194 | L201: -0.9987887513 | M201: -0.9987887513 | O201: 2.129100015e-11 | P201: 2.080000678e-11 | Q201: 2.126327915e-11 | S201: 5.16187347e-13 | T201: 5.347611458e-14 | V201: -76.71803937 | W201: -92.87192645 | X201: -102.7184015 | Z201: -92.87192645 | AD201: -124 | AE201: =IF('LOS Range'!$H$18>index+$H$25,'LOS Range'!$H$22,AD201+'LOS Range'!$H$26) -> -108 | AO201: 15.12807355 | AP201: 759.0209458 | AT201: 31.28196063 | AU201: 759.0209458
B202: 183 | C202: 763.1913906 | D202: 0.002656601287 | E202: 763.1913911 | F202: 763.1940837 | G202: 0.002692635686 | I202: -0.9770704273 | J202: -0.9987121906 | L202: -0.9988019502 | M202: -0.9988019502 | O202: 2.105894739e-11 | P202: 2.057592953e-11 | Q202: 2.103167907e-11 | S202: 5.07668844e-13 | T202: 5.246531448e-14 | V202: -76.7656334 | W202: -92.94419489 | X202: -102.8012772 | Z202: -92.94419489 | AD202: -124 | AE202: =IF('LOS Range'!$H$18>index+$H$25,'LOS Range'!$H$22,AD202+'LOS Range'!$H$26) -> -108 | AO202: 15.05580511 | AP202: 763.1913906 | AT202: 31.2343666 | AU202: 763.1913906
... 923 more rows

Sheet Sheet1 (hidden)

Sheet Range Debug Check List
B2: There are many factors that can cause poor range. In order to determine the root cause, please follow the guidelines shown below to debug the root cause:
B4: Calculate the theoretical range:
B6: 1 | C6: Read | D6: "Achieving Optimum Range" describes the important parameters so realistic values are entered in the range spreadsheet.
B8: 2 | C8: Calculate line-of-sight (LOS) range in the spreadsheet with your radio settings
C9: - | D9: output power
C10: - | D10: selection of chip and datarate
C11: - | D11: height of antennas above ground
C12: - | D12: operating frequency
B14: 3 | C14: Are there any objects between the LOS of the transmitter and receiver ?
C15: - | D15: If so, add a suitable absorbtion material that can represent the object blocking the LOS.
B17: 4 | C17: Choose an antenna gain that is realistic for your product
C18: - | D18: For example: achieving 100% efficiency for handheld device at 433 MHz will never occur. Typical efficiency would be -4 dBi for a good 433 MHz antenna for a handheld product.
B20: If the range is not meeting the expected distance then the root cause needs to be determined:
B22: Poor range could be caused by one or more of the following factors:
C23: - | D23: Poor sensitivity in the receiver
C24: - | D24: Poor Tx output power
C25: - | D25: Poor antenna
B27: The measurement methods will depend on what type of equipment is available.
B29: 5 | C29: Measure the conducted sensitivity
C30: - | D30: Disconnect the antenna and perform conducted measurements at the SMA connector or solder a semi-rigid cable at the 50 ohm point.
C31: - | D31: Preferred: use a signal generator that is capable to send data packets. If the signal generator cannot send data packets then just send preamble data.
D32: If a signal generator is not available, then use an EM with attenuation between the EM SMA connector and the antenna connector on the customer board.
D33: - | E33: It is difficult to get accurate numbers using this method since the exact values of output power and attenuation are not known.
D34: - | E34: Some energy will also travel over the air from the EM so placing the receiver in a metal box to shield it will give more accurate results.
C35: - | D35: If the conducted sensitivity is poor:
D36: - | E36: Are the settings the same as the recommended values in SmartRF studio?
D37: - | E37: Is the schematic according to the reference design?
D38: - | E38: Is the layout according to the reference design?
B40: 6 | C40: Measure the conducted output power
C41: - | D41: Disconnect the antenna and perform conducted measurements at the SMA connector or solder a semi-rigid cable at the 50 ohm point.
C42: - | D42: Preffered: use a spectrum analyzer (MSP-SA430 or similar does not have the required accuracy)
C43: - | D43: If a SA is not available, then use an EM or LaunchPad with a SMA connection point.
D44: - | E44: Add a known RF attenuation block between the transmiter's SMA connector and the EM / LaunchPad connector.
D45: - | E45: Use SmartRF Studio and set the EM / LaunchPad in continuous RX, and read the RSSI.
C46: - | D46: If the conducted power is poor:
D47: - | E47: Is the schematic according to the reference design?
D48: - | E48: Is the layout according to the reference design?
B50: 7 | C50: Measure the antenna. If the sensitivity and output power are as expected and the range is poor compared to the theoretical range the antenna efficiency is most likely poor.
C51: - | D51: Preffered: use a network analyzer (VNA) to accurately tune the antenna.
D52: - | E52: Disconnect the radio and add a semi-rigid cable / SMA connector at the 50 ohm point towards the antenna matching network and antenna.
D53: - | E53: Compensate the semi-rigid cable or SMA with port extensions so they are not included in the antenna measurements.
D54: - | E54: Always measure the antenna in the final casing otherwise the tuning will be invalid.
D55: - | E55: Always measure the antenna as would be used in the application. If the device is placed on a metal shelf, then the tuning must be made in a similiar environment.
D56: - | E56: Measure the resonance of the antenna and make sure the matching is better than VSWR 2.
D57: - | E57: If the resonance is not correct or the matching is greater than VSWR 2, then the antenna design needs to be reviewed again.
C58: - | D58: If measurements with a VNA is not possible then use an EM or LaunchPad with an known good antenna.
D59: - | E59: Measure the resonance frequency by sweeping the frequency of the transmitter and measure which frequency the receiver reads the highest RSSI.
C60: - | D60: If the antenna is poor:
D61: - | E61: Is the antenna matching network same as the antenna reference design?
D62: - | E62: Is the antenna layout according to a known antenna reference design?
B64: 8 | C64: If you still are having problems with range then contact TI via the E2E and we can assist furthermore. The inital response will always request for the above measurements in order to debug your case.
